{"text_format":"1","workbook":"xlsx","n_sheets":9,"sheets":["ФинЧасть","Заявка РП","Письмо РП","Письмо УМ","гр.Старт АП","Календарник","ДанныеОткрытие","ДанныеПерсонал","Формулы"],"not_rendered":{"charts":0,"images":0,"macros":1,"external_links":0,"defined_names":2,"comments":0,"pivot_tables":0},"unopened":[],"bounds":{"document_bytes":16777216,"sheet_cells":100000,"rows_first":2000,"rows_last":500,"rows_between":2000,"halvings":0,"cell_chars":16384,"cell_head_chars":4096},"cells_cut":0,"cells_raw":0,"read":"whole","date_system":"1900"}

{"sheet":"ФинЧасть","index":0,"n_rows":11,"n_cols":7,"rows_kept":11,"cut":false,"hidden":true,"merged":[[5,0,5,3],[0,0,0,3],[1,0,1,3],[2,0,2,3],[3,0,3,3],[4,0,4,3],[6,0,6,3],[7,0,7,3],[8,0,8,3],[9,0,9,3],[10,0,10,3]]}
["Командировка продавца-кассира с 04.06 по 19.06 Елена Бузмакова 8-900-375-86-64 (Ср 30000) ЕКБ Белинского В ФОТ для бюджета на выезд (Ср.ЗП)*1,5 =45000+ндфл 2243 (за месячную норму часов+переработки)"]
["Командировка ЗУМ с 04.06 по 19.06 Ксения Распопина 8-922-210-34-46 (Ср 39000) ЕКБ Белинского В ФОТ для бюджета на выезд (Ср.ЗП)*1,5 =58500+ндфл 2550 (за месячную норму часов+переработки)"]
["Командировка продавца с ... по ... Крокодилов Сергей Иванович 8-900-041-65-94(Ср 29100), ЕКБ Гранат, В ФОТ для бюджета на выезд (Ср.ЗП)*1,5=43650+ндфл 2243 руб (за месячную норму часов+переработки)"]
["Командировка Ст. кладовщик с 27.05 по 17.06 Фазилов Илья Ибрагимович 8-963-446-15-63(Ср 31500), ЕКБ Грибоедова, В ФОТ для бюджета на выезд (Ср.ЗП)*1,5=47250+ндфл 2691 руб (за месячную норму часов+переработки)"]
["Командировка кладовщик с ... по ... Грачев Игорь Михайлович 8-977-287-21-88(Ср 34900), МСК Мытищи Селезнева, В ФОТ для бюджета на выезд (Ср.ЗП)*1,5=52350+ндфл 1950 руб (за месячную норму часов+переработки)"]
["Командировка ЗУМ с 27.05 по 17.06 Давыдова Наталья Игоревна 8-901-71-51-499(Ср 48500) МСК Одинцово В ФОТ для бюджета на выезд Ср.ЗП*1,5 =72750+ндфл 2845 руб(за месячную норму часов+переработки) "]
["Командировка Ст. кассира с 08.06 по 17.06 Бондаренко Александра Леонидовна 8-982-649-60-66(Ср 32000) ЕКБ Гранат В ФОТ для бюджета на выезд Ср.ЗП*1,5 =24000+ндфл 2550(за 88 часов)",null,null,null,null,88,{"$f":"32000*F7/176*1.5","v":24000}]
["Командировка Ст. кассира с 25.08 по 08.09 Шелковникова Татьяна Павловна 8-919-766-50-10(Ср 42530) МСК Раменское Михалевича В ФОТ для бюджета на выезд Ср.ЗП*1,5 = 55821 + ндфл 2600(за 154 час)",null,null,null,14,{"$f":"E8*11","v":154},{"$f":"42530*F8/176*1.5","v":55820.625}]
["Командировка Ст. кассира с 04.06 по 17.06 Татьяна Храмова 8-982-611-41-75 (Ср 32000) ЕКБ Белинского В ФОТ для бюджета на выезд (Ср.ЗП)*1,5 =18000+ндфл 2550(за 66 часов)",null,null,null,null,66,{"$f":"32000*F9/176*1.5","v":18000}]
["Командировка ЗУМ с 04.06 по 19.06 Ильиных Евгений 8-982-638-62-01 (Ср 39000 ) ЕКБ Мегаполис В ФОТ для бюджета на выезд (Ср.ЗП)*1,5 =58500+ндфл 2550  (за месячную норму часов+переработки)"]
["Командировка ЗУМ с 04.06 по 19.06 Никита Ячменников 8-908-919-25-31 (Ср 39000) ЕКБ Бабушкина В ФОТ для бюджета на выезд (Ср.ЗП)*1,5 =58500+ндфл 2550 (за месячную норму часов+переработки)"]

{"sheet":"Заявка РП","index":1,"n_rows":77,"n_cols":5,"rows_kept":77,"cut":false,"hidden":false,"merged":[[33,1,33,3],[34,1,34,3],[23,0,23,3],[30,0,30,3],[29,0,29,3],[28,0,28,3],[25,0,25,3],[24,0,24,3],[26,0,26,3],[27,0,27,3],[0,0,0,3],[1,0,1,3],[2,0,2,3],[3,0,3,3],[4,0,4,3],[36,1,36,3],[37,1,37,3],[35,1,35,3],[53,1,53,3],[38,1,38,3],[6,0,6,3],[11,0,11,3],[10,0,10,3],[9,0,9,3],[8,0,8,3],[7,0,7,3],[19,0,19,3],[21,0,21,3],[22,0,22,3],[20,0,20,3],[12,0,12,3],[13,0,13,3],[14,0,14,3],[15,0,15,3],[16,0,16,3],[17,0,17,3],[18,0,18,3]]}
[{"$f":"Формулы!A27","v":"г. Железнодорожный ТЦ Центральный"},null,null,null,"ИМЯ ФАЙЛА"]
[{"$f":"Формулы!A28","v":"Аренда учебного класса с 11.01 по 15.01 - 4 дня"}]
["К командировкам всех сотрудников добавлен 2 дня - до и 1 день - после, на дорогу и заселение."]
[{"$f":"Формулы!A29","v":"Командировка тренера №1 - с 10.01 по 02.02"}]
[{"$f":"Формулы!A30","v":"Командировка тренера №2 - с 0 по 0"}]
["Старт ап:"]
[{"$f":"Формулы!A2","v":"Командировка ЗУМ с 0 по  0, Петров Петр, 8-888-111 (ср.33 ), Саратов, в ФОТ для бюджета на выезд (Ср.ЗП)*1,5 = 49,5 + ндфл 2 руб  (за месячную норму часов+переработки)"},null,null,null,1]
[{"$f":"Формулы!A3","v":"Командировка ЗУМ с 16.02 по  09.02, Иванов Иван, 8-888-112 (ср.42 ), Самара, в ФОТ для бюджета на выезд (Ср.ЗП)*1,5 = 63 + ндфл 28 руб  (за месячную норму часов+переработки)"},null,null,null,2]
[{"$f":"Формулы!A4","v":"Командировка ПК с 0 по  0, Сидоров Сидр, 8-888-113 (ср.22 ), Самара, в ФОТ для бюджета на выезд (Ср.ЗП)*1,5 = 33 + ндфл 3 руб  (за месячную норму часов+переработки)"},null,null,null,3]
[{"$f":"Формулы!A5","v":"Командировка ЗУМ с 0 по  0, Василий Алибабаевич, 8-888-114 (ср.32 ), Пушкин, в ФОТ для бюджета на выезд (Ср.ЗП)*1,5 = 48 + ндфл 3 руб  (за месячную норму часов+переработки)"},null,null,null,4]
[{"$f":"Формулы!A6","v":"Командировка БОСС с 0 по  0, Доцент, 8-888-115 (ср.322 ), Пушкино, в ФОТ для бюджета на выезд (Ср.ЗП)*1,5 = 483 + ндфл 22 руб  (за месячную норму часов+переработки)"},null,null,null,5]
[{"$f":"Формулы!A7","v":"Командировка ЗУМ с 0 по  0, Котов Кот, 8-888-116 (ср.45 ), Екатеринбург, в ФОТ для бюджета на выезд (Ср.ЗП)*1,5 = 67,5 + ндфл 27 руб  (за месячную норму часов+переработки)"},null,null,null,6]
[{"$f":"Формулы!A8","v":"Командировка ПК с 0 по  0, Смиронов Смирн, 8-888-117 (ср.30 ), Челябинск, в ФОТ для бюджета на выезд (Ср.ЗП)*1,5 = 45 + ндфл 15 руб  (за месячную норму часов+переработки)"},null,null,null,7]
[{"$f":"Формулы!A9","v":"Командировка 0 с 0 по  0, ВАКАНТ, 8-888-118 (ср.0 ), 0, в ФОТ для бюджета на выезд (Ср.ЗП)*1,5 = 0 + ндфл 0 руб  (за месячную норму часов+переработки)"},null,null,null,8]
[{"$f":"Формулы!A10","v":"Командировка 0 с 0 по  0, ВАКАНТ, 8-888-119 (ср.0 ), 0, в ФОТ для бюджета на выезд (Ср.ЗП)*1,5 = 0 + ндфл 0 руб  (за месячную норму часов+переработки)"},null,null,null,9]
[{"$f":"Формулы!A11","v":"Командировка ПК с 0 по  0, Вика, 8-888-120 (ср.43 ), Новосибирск, в ФОТ для бюджета на выезд (Ср.ЗП)*1,5 = 64,5 + ндфл 21 руб  (за месячную норму часов+переработки)"},null,null,null,10]
[{"$f":"Формулы!A12","v":"Командировка ЗУМ с 0 по  0, Светлогор, 8-888-121 (ср.55 ), Новокузнецк, в ФОТ для бюджета на выезд (Ср.ЗП)*1,5 = 82,5 + ндфл 2 руб  (за месячную норму часов+переработки)"},null,null,null,11]
[{"$f":"Формулы!A13","v":"Командировка 0 с 0 по  0, ВАКАНТ, 8-888-122 (ср.0 ), 0, в ФОТ для бюджета на выезд (Ср.ЗП)*1,5 = 0 + ндфл 0 руб  (за месячную норму часов+переработки)"},null,null,null,12]
[{"$f":"Формулы!A14","v":"Командировка Кладовщик с 0 по  0, Грачев Грач, 8-888-123 (ср.46 ), Москва, в ФОТ для бюджета на выезд (Ср.ЗП)*1,5 = 69 + ндфл 2 руб  (за месячную норму часов+переработки)"},null,null,null,13]
[{"$f":"Формулы!A15","v":"Командировка 0 с 16.01 по  09.02, Карпов Карп, 8-888-124 (ср.26 ), Питер, в ФОТ для бюджета на выезд (Ср.ЗП)*1,5 = 39 + ндфл 2 руб  (за месячную норму часов+переработки)"},null,null,null,14]
[{"$f":"Формулы!A16","v":"Командировка 0 с 0 по  0, ВАКАНТ, 8-888-125 (ср.0 ), 0, в ФОТ для бюджета на выезд (Ср.ЗП)*1,5 = 0 + ндфл 0 руб  (за месячную норму часов+переработки)"},null,null,null,15]
[{"$f":"Формулы!A17","v":"Командировка 0 с 0 по  0, ВАКАНТ, 8-888-126 (ср.0 ), 0, в ФОТ для бюджета на выезд (Ср.ЗП)*1,5 = 0 + ндфл 0 руб  (за месячную норму часов+переработки)"},null,null,null,16]
[{"$f":"Формулы!A18","v":"Командировка 0 с 0 по  0, ВАКАНТ, 8-888-127 (ср.0 ), 0, в ФОТ для бюджета на выезд (Ср.ЗП)*1,5 = 0 + ндфл 0 руб  (за месячную норму часов+переработки)"},null,null,null,17]
[{"$f":"Формулы!A19","v":"Командировка Ст. кладовщик с 0 по  0, Митя, 8-888-128 (ср.40 ), С.-Петербург, в ФОТ для бюджета на выезд (Ср.ЗП)*1,5 = 60 + ндфл 2 руб  (за месячную норму часов+переработки)"},null,null,null,18]
[{"$f":"Формулы!A20","v":"Командировка Ст. кладовщик с 0 по  0, Настя, 8-888-129 (ср.41 ), Екатеринбург, в ФОТ для бюджета на выезд (Ср.ЗП)*1,5 = 61,5 + ндфл 22 руб  (за месячную норму часов+переработки)"},null,null,null,19]
[{"$f":"Формулы!A21","v":"Командировка Ст.кладовщик с 0 по  0, Коля, 8-888-130 (ср.39 ), Москва, в ФОТ для бюджета на выезд (Ср.ЗП)*1,5 = 58,5 + ндфл 2 руб  (за месячную норму часов+переработки)"},null,null,null,20]
[{"$f":"Формулы!A22","v":"Командировка Ст.кладовщик с 0 по  0, Игорь, 8-888-131 (ср.24 ), Москва, в ФОТ для бюджета на выезд (Ср.ЗП)*1,5 = 36 + ндфл 3 руб  (за месячную норму часов+переработки)"},null,null,null,21]
[{"$f":"Формулы!A23","v":"Командировка Кладовщик с 0 по  0, Викор, 8-888-132 (ср.35 ), Тагил, в ФОТ для бюджета на выезд (Ср.ЗП)*1,5 = 52,5 + ндфл 1,7 руб  (за месячную норму часов+переработки)"},null,null,null,22]
[{"$f":"Формулы!A24","v":"Командировка ст.кладовщик с 0 по  0, Дима, 8-888-133 (ср.25 ), Томск, в ФОТ для бюджета на выезд (Ср.ЗП)*1,5 = 37,5 + ндфл 2 руб  (за месячную норму часов+переработки)"},null,null,null,23]
[{"$f":"Формулы!A25","v":"Командировка ст.кладовщик с 0 по  0, Саша, 8-888-134 (ср.14 ), Ставрополь, в ФОТ для бюджета на выезд (Ср.ЗП)*1,5 = 21 + ндфл 3 руб  (за месячную норму часов+переработки)"},null,null,null,24]
[]
["Дата","Старшие кассиры, ЗУМы","Продавцы – кассиры","Кладовщики"]
[{"$f":"ДанныеОткрытие!B7-1+1","v":"2020-01-10"},null,null,null,"Приезд тренера"]
[{"$f":"A33+1","v":"2020-01-11"},"Вводный курс"]
[{"$f":"A34+1","v":"2020-01-12"},"СБ"]
["2020-01-13","Выходной"]
["2020-01-14","1С"]
["2020-01-15","Склад",null,null,"Приезд  старт-ап"]
["2020-01-16","Поставка товара -разгрузка, приемка"]
["2020-01-17","Выкладка товара","Выкладка товара","Приемка товара"]
["2020-01-18","Выкладка товара","Выкладка товара","Приемка товара"]
["2020-01-19","Выкладка товара","Выкладка товара","Приемка товара"]
["2020-01-20","Выкладка товара","Выкладка товара","Приемка товара"]
["2020-01-21","Выкладка товара","Выкладка товара","Приемка товара"]
["2020-01-22","Выкладка товара","Выкладка товара","Приемка товара"]
["2020-01-23","Выкладка товара","Выкладка товара","Приемка товара"]
["2020-01-24","Выкладка товара","Выкладка товара","Приемка товара"]
["2020-01-25","Выкладка товара","Выкладка товара","Приемка товара"]
["2020-01-26","Выкладка товара","Выкладка товара","Приемка товара"]
["2020-01-27","Выкладка товара","Выкладка товара","Приемка товара"]
["2020-01-28","Выкладка товара","Выкладка товара","Приемка товара"]
["2020-01-29","Ценники, порядок в зале","Ценники, порядок в зале","Ценники, порядок в зале"]
["2020-01-30","Ценники, порядок в зале","Ценники, порядок в зале","Ценники, порядок в зале"]
["2020-01-31","Открытие"]
["2020-02-01"]
["2020-02-02",null,null,null,"Отъезд тренера "]
["2020-02-03"]
["2020-02-04"]
["2020-02-05"]
["2020-02-06"]
["2020-02-07"]
["2020-02-08",null,null,null,"Отъезд  старт-ап"]
["2020-02-09"]
["2020-02-10"]
["2020-02-11"]
["2020-02-12"]
["2020-02-13"]
["2020-02-14"]
["2020-02-15"]
["2020-02-16"]
["2020-02-17"]
["2020-02-18"]
["2020-02-19"]
["2020-02-20"]
["2020-02-21"]
["2020-02-22"]
["2020-02-23"]

{"sheet":"Письмо РП","index":2,"n_rows":5,"n_cols":2,"rows_kept":5,"cut":false,"hidden":false,"merged":[]}
["ТЕМА",{"$f":"Формулы!B71","v":"Данные по старт-ап команде г. Железнодорожный ТЦ Центральный"}]
[]
["ТЕКСТ",{"$f":"Формулы!A71","v":"Во вложении файл с датами командировки в г. Железнодорожный старт-ап команды, ФИО участников и их расчетная часть з/п. \nК командировкам всех сотрудников добавлен 1 дня -до и 1 день -после, на заселение и выселение, время требуемое на дорогу до/с объекта не учтено. \nПрошу сообщить о согласовании командировки данных участников.\n\n\n\nsg@m.ru"}]
[]
["ИМЯ ФАЙЛА",{"$f":"Формулы!A70","v":"РП Железнодорожный ТЦ Центральный"}]

{"sheet":"Письмо УМ","index":3,"n_rows":5,"n_cols":2,"rows_kept":5,"cut":false,"hidden":false,"merged":[]}
["ТЕМА",{"$f":"Формулы!B71","v":"Данные по старт-ап команде г. Железнодорожный ТЦ Центральный"}]
[]
["ТЕКСТ",{"$f":"Формулы!A82","v":"Уважаемые Управляющие, довожу до вашего сведения о предстоящей командировке ваших сотрудников:\n\n\nПетров Петр с 0 по 0       direktor-179 \nИванов Иван с 16.02 по 09.02       direktor-086 \nСидоров Сидр с 0 по 0        direktor-212 \nВасилий Алибабаевич с 0 по 0        direktor-213 \nДоцент с 0 по 0        direktor-214 \nКотов Кот с 0 по 0       direktor-008 \nСмиронов Смирн с 0 по 0       direktor-016 \nВАКАНТ с 0 по 0       0 \nВАКАНТ с 0 по 0       0 \nВика с 0 по 0       direktor-184@ \nСветлогор с 0 по 0       direktor-180@ \nВАКАНТ с 0 по 0       0 \nГрачев Грач с 0 по 0       direktor-136 \nКарпов Карп с 16.01 по 09.02       direktor-137 \nВАКАНТ с 0 по 0       0 \nВАКАНТ с 0 по 0       0 \nВАКАНТ с 0 по 0       0 \nМитя с 0 по 0       direktor-008  \nНастя с 0 по 0       direktor-109  \nКоля с 0 по 0       direktor-092  \nИгорь с 0 по 0       direktor-004  \nВикор с 0 по 0       direktor-221  \nДима с 0 по 0       direktor-160  \nСаша с 0 по 0       direktor-082  \n\nДаты указаны без учета затраченного времени на дорогу к месту командировки и возвращения из нее: только даты приезда на проект и отъезда с него. Точную дату выезда в командировку и дату возвращения из нее Ваш сотрудник предоставит после покупки билетов.\nНеобходимо учесть данный интервал дат при составлении табеля рабочего времени в Вашем магазине: один день до и два дня после обязательные выходные!\n\nПрошу подтвердить получение данного письма."}]
[null," "]
["ИМЯ ФАЙЛА",{"$f":"Формулы!A81","v":"УМ Железнодорожный ТЦ Центральный"}]

{"sheet":"гр.Старт АП","index":4,"n_rows":3,"n_cols":2,"rows_kept":3,"cut":false,"hidden":false,"merged":[]}
[{"$f":"Формулы!A34","v":"Группа г. Железнодорожный ТЦ Центральный\nПетров Петр - 0 по 0\nИванов Иван - 16.02 по 09.02\nСидоров Сидр - 0 по 0\nВасилий Алибабаевич - 0 по 0\nДоцент - 0 по 0\nКотов Кот - 0 по 0\nСмиронов Смирн - 0 по 0\nВАКАНТ - 0 по 0\nВАКАНТ - 0 по 0\nВика - 0 по 0\nСветлогор - 0 по 0\nВАКАНТ - 0 по 0\nГрачев Грач - 0 по 0\nКарпов Карп - 16.01 по 09.02\nВАКАНТ - 0 по 0\nВАКАНТ - 0 по 0\nВАКАНТ - 0 по 0\nМитя - 0 по 0\nНастя - 0 по 0\nКоля - 0 по 0\nИгорь - 0 по 0\nВикор - 0 по 0\nДима - 0 по 0\nСаша - 0 по 0\nПервая поставка - 16.01\nТехническое открытие - 31.01\nПраздничное открытие - 0\nРуководитель проекта - ГС, 8-102\nТренер на объекте - крок, 8-907\n\n_________\nДаты командировок указаны без учета дороги! Только даты приезда и отъезда на/с проект(а), при составлении заявки и расчете суточных - учитывайте время необходимое на дорогу!\n_________\nЭлектронная почта руководителя проекта,  ГС sg@m.ru, для подачи заявок на получение денежных средств\n_______\nАдрес объекта: г. Железнодорожный, ТЦ Центральный, Калиновского 1\n_________\nКоллеги АГЗ, напоминаю о табелировании команды стартап в табеле на google диске и о передаче ссылки УМу перед отъездом и напоминании УМу о табелировании команды стартап в данном табеле!"}]
[]
[{"$f":"Формулы!A33","v":"SU Железнодорожный ТЦ Центральный"},"ИМЯ ФАЙЛА"]

{"sheet":"Календарник","index":5,"n_rows":51,"n_cols":370,"rows_kept":51,"cut":false,"hidden":false,"merged":[[44,135,44,159],[47,68,47,92],[13,2,13,369],[30,2,30,369],[46,0,46,24],[41,36,41,60],[42,38,42,62],[34,48,34,72],[36,50,36,74],[35,49,35,73],[39,34,39,58],[40,35,40,59],[37,52,37,76],[38,57,38,81],[40,62,40,86],[34,19,34,43],[41,63,41,87],[43,131,43,155],[41,133,41,157],[36,21,36,45],[37,23,37,47],[38,24,38,48],[39,60,39,84],[43,44,43,68],[40,130,40,154],[17,2,17,369],[43,72,43,96],[34,80,34,104],[35,82,35,106],[42,66,42,90],[34,143,34,167],[35,147,35,171],[36,150,36,174],[37,160,37,184],[39,173,39,197],[40,175,40,199],[41,179,41,203],[42,186,42,210],[36,86,36,110],[37,88,37,112],[43,190,43,214],[43,239,43,263],[34,205,34,229],[35,207,35,231],[36,209,36,233],[37,212,37,236],[38,214,38,238],[36,263,36,287],[37,265,37,289],[38,267,38,291],[39,227,39,251],[40,231,40,255],[42,284,42,308],[39,128,39,152],[42,141,42,165],[41,108,41,132],[42,111,42,135],[41,235,41,259],[42,237,42,261],[40,319,40,343],[41,321,41,345],[42,323,42,347],[43,325,43,349],[34,299,34,323],[35,301,35,325],[36,303,36,327],[37,305,37,329],[38,312,38,336],[34,327,34,351],[35,331,35,355],[36,342,36,366],[43,291,43,315],[39,269,39,293],[40,273,40,297],[41,276,41,300],[1,19,1,43],[36,122,36,146],[37,124,37,148],[18,19,18,43],[39,316,39,340],[38,126,38,150],[38,162,38,186],[38,90,38,114],[39,96,39,120],[34,115,34,139],[35,118,35,142],[19,20,19,44],[2,20,2,44],[35,20,35,44],[34,246,34,270],[35,248,35,272]]}
[null,"№","ФИО","Должность","Город/Магазин","2021-01-01","2021-01-02","2021-01-03","2021-01-04","2021-01-05","2021-01-06","2021-01-07","2021-01-08","2021-01-09","2021-01-10","2021-01-11","2021-01-12","2021-01-13","2021-01-14","2021-01-15","2021-01-16","2021-01-17","2021-01-18","2021-01-19","2021-01-20","2021-01-21","2021-01-22","2021-01-23","2021-01-24","2021-01-25","2021-01-26","2021-01-27","2021-01-28","2021-01-29","2021-01-30","2021-01-31","2021-02-01","2021-02-02","2021-02-03","2021-02-04","2021-02-05","2021-02-06","2021-02-07","2021-02-08","2021-02-09","2021-02-10","2021-02-11","2021-02-12","2021-02-13","2021-02-14","2021-02-15","2021-02-16","2021-02-17","2021-02-18","2021-02-19","2021-02-20","2021-02-21","2021-02-22","2021-02-23","2021-02-24","2021-02-25","2021-02-26","2021-02-27","2021-02-28","2021-03-01","2021-03-02","2021-03-03","2021-03-04","2021-03-05","2021-03-06","2021-03-07","2021-03-08","2021-03-09","2021-03-10","2021-03-11","2021-03-12","2021-03-13","2021-03-14","2021-03-15","2021-03-16","2021-03-17","2021-03-18","2021-03-19","2021-03-20","2021-03-21","2021-03-22","2021-03-23","2021-03-24","2021-03-25","2021-03-26","2021-03-27","2021-03-28","2021-03-29","2021-03-30","2021-03-31","2021-04-01","2021-04-02","2021-04-03","2021-04-04","2021-04-05","2021-04-06","2021-04-07","2021-04-08","2021-04-09","2021-04-10","2021-04-11","2021-04-12","2021-04-13","2021-04-14","2021-04-15","2021-04-16","2021-04-17","2021-04-18","2021-04-19","2021-04-20","2021-04-21","2021-04-22","2021-04-23","2021-04-24","2021-04-25","2021-04-26","2021-04-27","2021-04-28","2021-04-29","2021-04-30","2021-05-01","2021-05-02","2021-05-03","2021-05-04","2021-05-05","2021-05-06","2021-05-07","2021-05-08","2021-05-09","2021-05-10","2021-05-11","2021-05-12","2021-05-13","2021-05-14","2021-05-15","2021-05-16","2021-05-17","2021-05-18","2021-05-19","2021-05-20","2021-05-21","2021-05-22","2021-05-23","2021-05-24","2021-05-25","2021-05-26","2021-05-27","2021-05-28","2021-05-29","2021-05-30","2021-05-31","2021-06-01","2021-06-02","2021-06-03","2021-06-04","2021-06-05","2021-06-06","2021-06-07","2021-06-08","2021-06-09","2021-06-10","2021-06-11","2021-06-12","2021-06-13","2021-06-14","2021-06-15","2021-06-16","2021-06-17","2021-06-18","2021-06-19","2021-06-20","2021-06-21","2021-06-22","2021-06-23","2021-06-24","2021-06-25","2021-06-26","2021-06-27","2021-06-28","2021-06-29","2021-06-30","2021-07-01","2021-07-02","2021-07-03","2021-07-04","2021-07-05","2021-07-06","2021-07-07","2021-07-08","2021-07-09","2021-07-10","2021-07-11","2021-07-12","2021-07-13","2021-07-14","2021-07-15","2021-07-16","2021-07-17","2021-07-18","2021-07-19","2021-07-20","2021-07-21","2021-07-22","2021-07-23","2021-07-24","2021-07-25","2021-07-26","2021-07-27","2021-07-28","2021-07-29","2021-07-30","2021-07-31","2021-08-01","2021-08-02","2021-08-03","2021-08-04","2021-08-05","2021-08-06","2021-08-07","2021-08-08","2021-08-09","2021-08-10","2021-08-11","2021-08-12","2021-08-13","2021-08-14","2021-08-15","2021-08-16","2021-08-17","2021-08-18","2021-08-19","2021-08-20","2021-08-21","2021-08-22","2021-08-23","2021-08-24","2021-08-25","2021-08-26","2021-08-27","2021-08-28","2021-08-29","2021-08-30","2021-08-31","2021-09-01","2021-09-02","2021-09-03","2021-09-04","2021-09-05","2021-09-06","2021-09-07","2021-09-08","2021-09-09","2021-09-10","2021-09-11","2021-09-12","2021-09-13","2021-09-14","2021-09-15","2021-09-16","2021-09-17","2021-09-18","2021-09-19","2021-09-20","2021-09-21","2021-09-22","2021-09-23","2021-09-24","2021-09-25","2021-09-26","2021-09-27","2021-09-28","2021-09-29","2021-09-30","2021-10-01","2021-10-02","2021-10-03","2021-10-04","2021-10-05","2021-10-06","2021-10-07","2021-10-08","2021-10-09","2021-10-10","2021-10-11","2021-10-12","2021-10-13","2021-10-14","2021-10-15","2021-10-16","2021-10-17","2021-10-18","2021-10-19","2021-10-20","2021-10-21","2021-10-22","2021-10-23","2021-10-24","2021-10-25","2021-10-26","2021-10-27","2021-10-28","2021-10-29","2021-10-30","2021-10-31","2021-11-01","2021-11-02","2021-11-03","2021-11-04","2021-11-05","2021-11-06","2021-11-07","2021-11-08","2021-11-09","2021-11-10","2021-11-11","2021-11-12","2021-11-13","2021-11-14","2021-11-15","2021-11-16","2021-11-17","2021-11-18","2021-11-19","2021-11-20","2021-11-21","2021-11-22","2021-11-23","2021-11-24","2021-11-25","2021-11-26","2021-11-27","2021-11-28","2021-11-29","2021-11-30","2021-12-01","2021-12-02","2021-12-03","2021-12-04","2021-12-05","2021-12-06","2021-12-07","2021-12-08","2021-12-09","2021-12-10","2021-12-11","2021-12-12","2021-12-13","2021-12-14","2021-12-15","2021-12-16","2021-12-17","2021-12-18","2021-12-19","2021-12-20","2021-12-21","2021-12-22","2021-12-23","2021-12-24","2021-12-25","2021-12-26","2021-12-27","2021-12-28","2021-12-29","2021-12-30","2021-12-31"]
[1,{"$f":"ROW(2:2)-1","v":1},{"$f":"ДанныеПерсонал!B2","v":"Петров Петр"},{"$f":"ДанныеПерсонал!C2","v":"ЗУМ"},{"$f":"ДанныеПерсонал!E2","v":"Саратов"},null,null,null,null,null,null,null,null,null,null,null,null,null,null,"Железнодорожный"]
[2,2,{"$f":"ДанныеПерсонал!B3","v":"Иванов Иван"},{"$f":"ДанныеПерсонал!C3","v":"ЗУМ"},{"$f":"ДанныеПерсонал!E3","v":"Самара"},null,null,null,null,null,null,null,null,null,null,null,null,null,null,null,"Химки"]
[3,3,{"$f":"ДанныеПерсонал!B4","v":"Сидоров Сидр"},{"$f":"ДанныеПерсонал!C4","v":"ПК"},{"$f":"ДанныеПерсонал!E4","v":"Самара"}]
[null,4,{"$f":"ДанныеПерсонал!B5","v":"Василий Алибабаевич"},{"$f":"ДанныеПерсонал!C5","v":"ЗУМ"},{"$f":"ДанныеПерсонал!E5","v":"Пушкин"}]
[null,5,{"$f":"ДанныеПерсонал!B6","v":"Доцент"},{"$f":"ДанныеПерсонал!C6","v":"БОСС"},{"$f":"ДанныеПерсонал!E6","v":"Пушкино"}]
[8,6,{"$f":"ДанныеПерсонал!B7","v":"Котов Кот"},{"$f":"ДанныеПерсонал!C7","v":"ЗУМ"},{"$f":"ДанныеПерсонал!E7","v":"Екатеринбург"}]
[null,7,{"$f":"ДанныеПерсонал!B8","v":"Смиронов Смирн"},{"$f":"ДанныеПерсонал!C8","v":"ПК"},{"$f":"ДанныеПерсонал!E8","v":"Челябинск"}]
[null,8,{"$f":"ДанныеПерсонал!B9","v":"ВАКАНТ"},{"$f":"ДанныеПерсонал!C9","v":0},{"$f":"ДанныеПерсонал!E9","v":0}]
[null,9,{"$f":"ДанныеПерсонал!B10","v":"ВАКАНТ"},{"$f":"ДанныеПерсонал!C10","v":0},{"$f":"ДанныеПерсонал!E10","v":0}]
[null,10,{"$f":"ДанныеПерсонал!B11","v":"Вика"},{"$f":"ДанныеПерсонал!C11","v":"ПК"},{"$f":"ДанныеПерсонал!E11","v":"Новосибирск"}]
[null,11,{"$f":"ДанныеПерсонал!B12","v":"Светлогор"},{"$f":"ДанныеПерсонал!C12","v":"ЗУМ"},{"$f":"ДанныеПерсонал!E12","v":"Новокузнецк"}]
[null,12,{"$f":"ДанныеПерсонал!B13","v":"ВАКАНТ"},{"$f":"ДанныеПерсонал!C13","v":0},{"$f":"ДанныеПерсонал!E13","v":0}]
[]
[5,null,{"$f":"ДанныеПерсонал!B26","v":0},{"$f":"ДанныеПерсонал!C26","v":0},{"$f":"ДанныеПерсонал!E26","v":0}]
[6,null,{"$f":"ДанныеПерсонал!B27","v":0},{"$f":"ДанныеПерсонал!C27","v":0},{"$f":"ДанныеПерсонал!E27","v":0}]
[7,null,{"$f":"ДанныеПерсонал!B28","v":0},{"$f":"ДанныеПерсонал!C28","v":0},{"$f":"ДанныеПерсонал!E28","v":0}]
[]
[9,{"$f":"ROW(19:19)-6","v":13},{"$f":"ДанныеПерсонал!B14","v":"Грачев Грач"},{"$f":"ДанныеПерсонал!C14","v":"Кладовщик"},{"$f":"ДанныеПерсонал!E14","v":"Москва"},null,null,null,null,null,null,null,null,null,null,null,null,null,null,"Железнодорожный"]
[10,{"$f":"ROW(20:20)-6","v":14},{"$f":"ДанныеПерсонал!B15","v":"Карпов Карп"},{"$f":"ДанныеПерсонал!C15","v":0},{"$f":"ДанныеПерсонал!E15","v":"Питер"},null,null,null,null,null,null,null,null,null,null,null,null,null,null,null,"Химки"]
[11,15,{"$f":"ДанныеПерсонал!B16","v":"ВАКАНТ"},{"$f":"ДанныеПерсонал!C16","v":0},{"$f":"ДанныеПерсонал!E16","v":0}]
[null,16,{"$f":"ДанныеПерсонал!B17","v":"ВАКАНТ"},{"$f":"ДанныеПерсонал!C17","v":0},{"$f":"ДанныеПерсонал!E17","v":0}]
[null,17,{"$f":"ДанныеПерсонал!B18","v":"ВАКАНТ"},{"$f":"ДанныеПерсонал!C18","v":0},{"$f":"ДанныеПерсонал!E18","v":0}]
[4,18,{"$f":"ДанныеПерсонал!B21","v":"Коля"},{"$f":"ДанныеПерсонал!C21","v":"Ст.кладовщик"},{"$f":"ДанныеПерсонал!E21","v":"Москва"}]
[null,19,{"$f":"ДанныеПерсонал!B19","v":"Митя"},{"$f":"ДанныеПерсонал!C19","v":"Ст. кладовщик"},{"$f":"ДанныеПерсонал!E19","v":"С.-Петербург"}]
[null,20,{"$f":"ДанныеПерсонал!B20","v":"Настя"},{"$f":"ДанныеПерсонал!C20","v":"Ст. кладовщик"},{"$f":"ДанныеПерсонал!E20","v":"Екатеринбург"}]
[null,21,{"$f":"ДанныеПерсонал!B22","v":"Игорь"},{"$f":"ДанныеПерсонал!C22","v":"Ст.кладовщик"},{"$f":"ДанныеПерсонал!E22","v":"Москва"}]
[null,22,{"$f":"ДанныеПерсонал!B23","v":"Викор"},{"$f":"ДанныеПерсонал!C23","v":"Кладовщик"},{"$f":"ДанныеПерсонал!E23","v":"Тагил"}]
[null,23,{"$f":"ДанныеПерсонал!B24","v":"Дима"},{"$f":"ДанныеПерсонал!C24","v":"ст.кладовщик"},{"$f":"ДанныеПерсонал!E24","v":"Томск"}]
[null,24,{"$f":"ДанныеПерсонал!B25","v":"Саша"},{"$f":"ДанныеПерсонал!C25","v":"ст.кладовщик"},{"$f":"ДанныеПерсонал!E25","v":"Ставрополь"}]
[{"$f":"ДанныеПерсонал!B29","v":0}]
[null,null,{"$f":"ДанныеПерсонал!B30","v":0},{"$f":"ДанныеПерсонал!C30","v":0},{"$f":"ДанныеПерсонал!E30","v":0}]
[null,null,{"$f":"ДанныеПерсонал!B31","v":0},{"$f":"ДанныеПерсонал!C31","v":0},{"$f":"ДанныеПерсонал!E31","v":0}]
[null,null,{"$f":"ДанныеПерсонал!B32","v":0},{"$f":"ДанныеПерсонал!C32","v":0},{"$f":"ДанныеПерсонал!E32","v":0}]
[null,null,null,null,null,null,null,null,null,null,null,null,null,null,null,null,null,null,null,"Железнодорожный",null,null,null,null,null,null,null,null,null,null,null,null,null,null,null,null,null,null,null,null,null,null,null,null,null,null,null,null,"Москва",null,null,null,null,null,null,null,null,null,null,null,null,null,null,null,null,null,null,null,null,null,null,null,null,null,null,null,null,null,null,null,"Шадринск",null,null,null,null,null,null,null,null,null,null,null,null,null,null,null,null,null,null,null,null,null,null,null,null,null,null,null,null,null,null,null,null,null,null,"Томск",null,null,null,null,null,null,null,null,null,null,null,null,null,null,null,null,null,null,null,null,null,null,null,null,null,null,null,"Хабаровск",null,null,null,null,null,null,null,null,null,null,null,null,null,null,null,null,null,null,null,null,null,null,null,null,null,null,null,null,null,null,null,null,null,null,null,null,null,null,null,null,null,null,null,null,null,null,null,null,null,null,null,null,null,null,null,null,null,null,null,null,null,"Москва",null,null,null,null,null,null,null,null,null,null,null,null,null,null,null,null,null,null,null,null,null,null,null,null,null,null,null,null,null,null,null,null,null,null,null,null,null,null,null,null,"Таганрог",null,null,null,null,null,null,null,null,null,null,null,null,null,null,null,null,null,null,null,null,null,null,null,null,null,null,null,null,null,null,null,null,null,null,null,null,null,null,null,null,null,null,null,null,null,null,null,null,null,null,null,null,"Владивосток",null,null,null,null,null,null,null,null,null,null,null,null,null,null,null,null,null,null,null,null,null,null,null,null,null,null,null,"Рубцовск"]
[null,null,null,null,null,null,null,null,null,null,null,null,null,null,null,null,null,null,null,null,"Химки",null,null,null,null,null,null,null,null,null,null,null,null,null,null,null,null,null,null,null,null,null,null,null,null,null,null,null,null,"Бийск",null,null,null,null,null,null,null,null,null,null,null,null,null,null,null,null,null,null,null,null,null,null,null,null,null,null,null,null,null,null,null,null,"Череповец",null,null,null,null,null,null,null,null,null,null,null,null,null,null,null,null,null,null,null,null,null,null,null,null,null,null,null,null,null,null,null,null,null,null,null,"Московская обл",null,null,null,null,null,null,null,null,null,null,null,null,null,null,null,null,null,null,null,null,null,null,null,null,null,null,null,null,"Казань",null,null,null,null,null,null,null,null,null,null,null,null,null,null,null,null,null,null,null,null,null,null,null,null,null,null,null,null,null,null,null,null,null,null,null,null,null,null,null,null,null,null,null,null,null,null,null,null,null,null,null,null,null,null,null,null,null,null,null,"Хабаровск",null,null,null,null,null,null,null,null,null,null,null,null,null,null,null,null,null,null,null,null,null,null,null,null,null,null,null,null,null,null,null,null,null,null,null,null,null,null,null,null,"Тобольск",null,null,null,null,null,null,null,null,null,null,null,null,null,null,null,null,null,null,null,null,null,null,null,null,null,null,null,null,null,null,null,null,null,null,null,null,null,null,null,null,null,null,null,null,null,null,null,null,null,null,null,null,"Тверь",null,null,null,null,null,null,null,null,null,null,null,null,null,null,null,null,null,null,null,null,null,null,null,null,null,null,null,null,null,"Тверь"]
[null,null,null,null,null,null,null,null,null,null,null,null,null,null,null,null,null,null,null,null,null,"Хабаровск",null,null,null,null,null,null,null,null,null,null,null,null,null,null,null,null,null,null,null,null,null,null,null,null,null,null,null,null,"Москва",null,null,null,null,null,null,null,null,null,null,null,null,null,null,null,null,null,null,null,null,null,null,null,null,null,null,null,null,null,null,null,null,null,null,null,"Хабаровск",null,null,null,null,null,null,null,null,null,null,null,null,null,null,null,null,null,null,null,null,null,null,null,null,null,null,null,null,null,null,null,null,null,null,null,"Липецк",null,null,null,null,null,null,null,null,null,null,null,null,null,null,null,null,null,null,null,null,null,null,null,null,null,null,null,"Балашиха",null,null,null,null,null,null,null,null,null,null,null,null,null,null,null,null,null,null,null,null,null,null,null,null,null,null,null,null,null,null,null,null,null,null,null,null,null,null,null,null,null,null,null,null,null,null,null,null,null,null,null,null,null,null,null,null,null,null,"Подольск",null,null,null,null,null,null,null,null,null,null,null,null,null,null,null,null,null,null,null,null,null,null,null,null,null,null,null,null,null,null,null,null,null,null,null,null,null,null,null,null,null,null,null,null,null,null,null,null,null,null,null,null,null,"Тверь",null,null,null,null,null,null,null,null,null,null,null,null,null,null,null,null,null,null,null,null,null,null,null,null,null,null,null,null,null,null,null,null,null,null,null,null,null,null,null,"Московская обл",null,null,null,null,null,null,null,null,null,null,null,null,null,null,null,null,null,null,null,null,null,null,null,null,null,null,null,null,null,null,null,null,null,null,null,null,null,null,"Владивосток"]
[null,null,null,null,null,null,null,null,null,null,null,null,null,null,null,null,null,null,null,null,null,null,null,"Казань",null,null,null,null,null,null,null,null,null,null,null,null,null,null,null,null,null,null,null,null,null,null,null,null,null,null,null,null,"Домодедово",null,null,null,null,null,null,null,null,null,null,null,null,null,null,null,null,null,null,null,null,null,null,null,null,null,null,null,null,null,null,null,null,null,null,null,"Москва",null,null,null,null,null,null,null,null,null,null,null,null,null,null,null,null,null,null,null,null,null,null,null,null,null,null,null,null,null,null,null,null,null,null,null,"Березники",null,null,null,null,null,null,null,null,null,null,null,null,null,null,null,null,null,null,null,null,null,null,null,null,null,null,null,null,null,null,null,null,null,null,null,"Рязань",null,null,null,null,null,null,null,null,null,null,null,null,null,null,null,null,null,null,null,null,null,null,null,null,null,null,null,null,null,null,null,null,null,null,null,null,null,null,null,null,null,null,null,null,null,null,null,null,null,null,null,"Набережные челны",null,null,null,null,null,null,null,null,null,null,null,null,null,null,null,null,null,null,null,null,null,null,null,null,null,null,null,null,null,null,null,null,null,null,null,null,null,null,null,null,null,null,null,null,null,null,null,null,null,null,null,null,"Благовещенск",null,null,null,null,null,null,null,null,null,null,null,null,null,null,null,null,null,null,null,null,null,null,null,null,null,null,null,null,null,null,null,null,null,null,null,null,null,null,null,"Омск"]
[null,null,null,null,null,null,null,null,null,null,null,null,null,null,null,null,null,null,null,null,null,null,null,null,"ФР Москва",null,null,null,null,null,null,null,null,null,null,null,null,null,null,null,null,null,null,null,null,null,null,null,null,null,null,null,null,null,null,null,null,"Москва",null,null,null,null,null,null,null,null,null,null,null,null,null,null,null,null,null,null,null,null,null,null,null,null,null,null,null,null,null,null,null,null,"Ярославль",null,null,null,null,null,null,null,null,null,null,null,null,null,null,null,null,null,null,null,null,null,null,null,null,null,null,null,null,null,null,null,null,null,null,null,"Подольск",null,null,null,null,null,null,null,null,null,null,null,null,null,null,null,null,null,null,null,null,null,null,null,null,null,null,null,null,null,null,null,null,null,null,null,"Первоуральск",null,null,null,null,null,null,null,null,null,null,null,null,null,null,null,null,null,null,null,null,null,null,null,null,null,null,null,null,null,null,null,null,null,null,null,null,null,null,null,null,null,null,null,null,null,null,null,null,null,null,null,"Нефтеюганск",null,null,null,null,null,null,null,null,null,null,null,null,null,null,null,null,null,null,null,null,null,null,null,null,null,null,null,null,null,null,null,null,null,null,null,null,null,null,null,null,null,null,null,null,null,null,null,null,null,null,null,null,"Южно-Сахалинск",null,null,null,null,null,null,null,null,null,null,null,null,null,null,null,null,null,null,null,null,null,null,null,null,null,null,null,null,null,null,null,null,null,null,null,null,null,null,null,null,null,null,null,null,"Южно-Сахалинск"]
[null,null,null,null,null,null,null,null,null,null,null,null,null,null,null,null,null,null,null,null,null,null,null,null,null,null,null,null,null,null,null,null,null,null,"ФР Москва",null,null,null,null,null,null,null,null,null,null,null,null,null,null,null,null,null,null,null,null,null,null,null,null,null,"Магнотогорск",null,null,null,null,null,null,null,null,null,null,null,null,null,null,null,null,null,null,null,null,null,null,null,null,null,null,null,null,null,null,null,null,null,null,null,"Тула",null,null,null,null,null,null,null,null,null,null,null,null,null,null,null,null,null,null,null,null,null,null,null,null,null,null,null,null,null,null,null,"Хабаровск",null,null,null,null,null,null,null,null,null,null,null,null,null,null,null,null,null,null,null,null,null,null,null,null,null,null,null,null,null,null,null,null,null,null,null,null,null,null,null,null,null,null,null,null,"Владивосток",null,null,null,null,null,null,null,null,null,null,null,null,null,null,null,null,null,null,null,null,null,null,null,null,null,null,null,null,null,null,null,null,null,null,null,null,null,null,null,null,null,null,null,null,null,null,null,null,null,null,null,null,null,"ФР Ставрополь",null,null,null,null,null,null,null,null,null,null,null,null,null,null,null,null,null,null,null,null,null,null,null,null,null,null,null,null,null,null,null,null,null,null,null,null,null,null,null,null,null,"Ульяновск",null,null,null,null,null,null,null,null,null,null,null,null,null,null,null,null,null,null,null,null,null,null,null,null,null,null,null,null,null,null,null,null,null,null,null,null,null,null,null,null,null,null,null,null,null,null,"ФР Краснодар"]
[null,null,null,null,null,null,null,null,null,null,null,null,null,null,null,null,null,null,null,null,null,null,null,null,null,null,null,null,null,null,null,null,null,null,null,"ФР Уфа",null,null,null,null,null,null,null,null,null,null,null,null,null,null,null,null,null,null,null,null,null,null,null,null,null,null,"Липецк",null,null,null,null,null,null,null,null,null,null,null,null,null,null,null,null,null,null,null,null,null,null,null,null,null,null,null,null,null,null,null,null,null,null,null,null,null,null,null,null,null,null,null,null,null,null,null,null,null,null,null,null,null,null,null,null,null,null,null,null,null,null,null,null,null,null,null,"Ульяновск",null,null,null,null,null,null,null,null,null,null,null,null,null,null,null,null,null,null,null,null,null,null,null,null,null,null,null,null,null,null,null,null,null,null,null,null,null,null,null,null,null,null,null,null,"Воскресенск",null,null,null,null,null,null,null,null,null,null,null,null,null,null,null,null,null,null,null,null,null,null,null,null,null,null,null,null,null,null,null,null,null,null,null,null,null,null,null,null,null,null,null,null,null,null,null,null,null,null,null,null,null,null,null,"ФР Московская обл",null,null,null,null,null,null,null,null,null,null,null,null,null,null,null,null,null,null,null,null,null,null,null,null,null,null,null,null,null,null,null,null,null,null,null,null,null,null,null,null,null,"Ухта",null,null,null,null,null,null,null,null,null,null,null,null,null,null,null,null,null,null,null,null,null,null,null,null,null,null,null,null,null,null,null,null,null,null,null,null,null,null,null,null,null,null,null,null,null,"ФР Московская обл"]
[null,null,null,null,null,null,null,null,null,null,null,null,null,null,null,null,null,null,null,null,null,null,null,null,null,null,null,null,null,null,null,null,null,null,null,null,"ФР Ставрополь",null,null,null,null,null,null,null,null,null,null,null,null,null,null,null,null,null,null,null,null,null,null,null,null,null,null,"Вологда",null,null,null,null,null,null,null,null,null,null,null,null,null,null,null,null,null,null,null,null,null,null,null,null,null,null,null,null,null,null,null,null,null,null,null,null,null,null,null,null,null,null,null,null,"ФР Тамбов",null,null,null,null,null,null,null,null,null,null,null,null,null,null,null,null,null,null,null,null,null,null,null,null,"ФР Краснодар",null,null,null,null,null,null,null,null,null,null,null,null,null,null,null,null,null,null,null,null,null,null,null,null,null,null,null,null,null,null,null,null,null,null,null,null,null,null,null,null,null,null,null,null,null,"Московская область",null,null,null,null,null,null,null,null,null,null,null,null,null,null,null,null,null,null,null,null,null,null,null,null,null,null,null,null,null,null,null,null,null,null,null,null,null,null,null,null,null,null,null,null,null,null,null,null,null,null,null,null,null,null,null,"Владивосток",null,null,null,null,null,null,null,null,null,null,null,null,null,null,null,null,null,null,null,null,null,null,null,null,null,null,null,null,null,null,null,null,null,null,null,null,null,null,null,null,"Ростов-на-дону",null,null,null,null,null,null,null,null,null,null,null,null,null,null,null,null,null,null,null,null,null,null,null,null,null,null,null,null,null,null,null,null,null,null,null,null,null,null,null,null,null,null,null,null,"ФР Красноярский край"]
[null,null,null,null,null,null,null,null,null,null,null,null,null,null,null,null,null,null,null,null,null,null,null,null,null,null,null,null,null,null,null,null,null,null,null,null,null,null,"Ханты",null,null,null,null,null,null,null,null,null,null,null,null,null,null,null,null,null,null,null,null,null,null,null,null,null,null,null,"Владивосток",null,null,null,null,null,null,null,null,null,null,null,null,null,null,null,null,null,null,null,null,null,null,null,null,null,null,null,null,null,null,null,null,null,null,null,null,null,null,null,null,null,null,null,null,"Владивосток",null,null,null,null,null,null,null,null,null,null,null,null,null,null,null,null,null,null,null,null,null,null,null,null,null,null,null,null,null,"Лобня",null,null,null,null,null,null,null,null,null,null,null,null,null,null,null,null,null,null,null,null,null,null,null,null,null,null,null,null,null,null,null,null,null,null,null,null,null,null,null,null,null,null,null,null,"Раменское",null,null,null,null,null,null,null,null,null,null,null,null,null,null,null,null,null,null,null,null,null,null,null,null,null,null,null,null,null,null,null,null,null,null,null,null,null,null,null,null,null,null,null,null,null,null,null,null,null,null,"Москва",null,null,null,null,null,null,null,null,null,null,null,null,null,null,null,null,null,null,null,null,null,null,null,null,null,null,null,null,null,null,null,null,null,null,null,null,null,null,null,null,null,null,null,null,null,null,"Хабаровск",null,null,null,null,null,null,null,null,null,null,null,null,null,null,null,null,null,null,null,null,null,null,null,null,null,null,null,null,null,null,null,null,null,null,null,null,null,null,"Хабаровск"]
[null,null,null,null,null,null,null,null,null,null,null,null,null,null,null,null,null,null,null,null,null,null,null,null,null,null,null,null,null,null,null,null,null,null,null,null,null,null,null,null,null,null,null,null,"Сочи",null,null,null,null,null,null,null,null,null,null,null,null,null,null,null,null,null,null,null,null,null,null,null,null,null,null,null,"ФР Свердловская обл",null,null,null,null,null,null,null,null,null,null,null,null,null,null,null,null,null,null,null,null,null,null,null,null,null,null,null,null,null,null,null,null,null,null,null,null,null,null,null,null,null,null,null,null,null,null,null,null,null,null,null,null,null,null,null,null,null,null,"Владивосток",null,null,null,null,null,null,null,null,null,null,null,null,null,null,null,null,null,null,null,null,null,null,null,null,null,null,null,null,null,null,null,null,null,null,null,null,null,null,null,null,null,null,null,null,null,null,null,null,null,null,null,null,null,null,null,null,null,null,"ФР Нижний Новгород",null,null,null,null,null,null,null,null,null,null,null,null,null,null,null,null,null,null,null,null,null,null,null,null,null,null,null,null,null,null,null,null,null,null,null,null,null,null,null,null,null,null,null,null,null,null,null,null,"Сергиев Посад",null,null,null,null,null,null,null,null,null,null,null,null,null,null,null,null,null,null,null,null,null,null,null,null,null,null,null,null,null,null,null,null,null,null,null,null,null,null,null,null,null,null,null,null,null,null,null,null,null,null,null,"ФР Воронеж",null,null,null,null,null,null,null,null,null,null,null,null,null,null,null,null,null,null,null,null,null,null,null,null,null,null,null,null,null,null,null,null,null,"Владивосток"]
[null,null,null,null,null,null,null,null,null,null,null,null,null,null,null,null,null,null,null,null,null,null,null,null,null,null,null,null,null,null,null,null,null,null,null,null,null,null,null,null,null,null,null,null,null,null,null,null,null,null,null,null,null,null,null,null,null,null,null,null,null,null,null,null,null,null,null,null,null,null,null,null,null,null,null,null,null,null,null,null,null,null,null,null,null,null,null,null,null,null,null,null,null,null,null,null,null,null,null,null,null,null,null,null,null,null,null,null,null,null,null,null,null,null,null,null,null,null,null,null,null,null,null,null,null,null,null,null,null,null,null,null,null,null,null,"ФР Одинцово"]
[]
["Проект"]
[null,null,null,null,null,null,null,null,null,null,null,null,null,null,null,null,null,null,null,null,null,null,null,null,null,null,null,null,null,null,null,null,null,null,null,null,null,null,null,null,null,null,null,null,null,null,null,null,null,null,null,null,null,null,null,null,null,null,null,null,null,null,null,null,null,null,null,null,"Резерв ФР"]
[null,null,"Урал / Сибирь"]
[null,null,"Центр"]
[null,null,"Восток"]

{"sheet":"ДанныеОткрытие","index":6,"n_rows":51,"n_cols":3,"rows_kept":51,"cut":false,"hidden":false,"merged":[]}
["Город","Железнодорожный"]
["ТЦ","Центральный"]
["Адрес","Калиновского 1"]
["Нач. обуч.","2020-01-11"]
["Кон. обуч.",{"$f":"B4+C6","v":"2020-01-15"}]
["Кол-во дней",null,4]
["Приезд 1 тренера",{"$f":"B4-1","v":"2020-01-10"}]
["Уезд 1 тренера",{"$f":"B12+2","v":"2020-02-02"},{"$f":"B8-B7+1","v":24}]
[]
[]
["1 Поставка",{"$f":"(B5+1)","v":"2020-01-16"}]
["Тех.открытие",{"$f":"B11+15","v":"2020-01-31"}]
["Празд.открытие"]
["РП","ГС"]
["АГЗ",2]
[null,{"$f":"Формулы!D63","v":"крок"}]
[]
["приезд SU",{"$f":"B5","v":"2020-01-15"},"моя шпоргалка"]
["уезд SU",{"$f":"B18+24","v":"2020-02-08"}]
[]
[]
[]
[]
[]
[]
[]
[]
[]
[]
[]
[]
[]
[]
[]
[]
[]
[]
[]
[]
[]
[]
[]
[]
[]
[]
[]
[]
[]
[]
[]
[{"$f":"CONCATENATE(B30,CHAR(10),B31,CHAR(10),B32,CHAR(10),B33,CHAR(10),B34,CHAR(10),B35,CHAR(10),B36,CHAR(10),B37,CHAR(10),B38,CHAR(10),B39,CHAR(10),B40,CHAR(10),B41,CHAR(10),B42,CHAR(10),B43,CHAR(10),B44,CHAR(10),B45,CHAR(10),B50,CHAR(10),B51,CHAR(10),B52,CHAR(10),B53,CHAR(10),B54,CHAR(10),B55,B56,D57,\" \",E57,\",\",\" \",B57,B58,\" \",D30,\",\",\" \",ДанныеОткрытие!A2,\" \",\"\",\"\n\",A53,)","v":"\n\n\n\n\n\n\n\n\n\n\n\n\n\n\n\n\n\n\n\n\n ,  , ТЦ \n"}]

{"sheet":"ДанныеПерсонал","index":7,"n_rows":28,"n_cols":15,"rows_kept":28,"cut":false,"hidden":false,"merged":[]}
["№","ФИО","Должность","Телефон","Город","email","Начало\nкоман-\nдировки","Конец\nкоман-\nдировки","ЗП","Коэф","Команд.\nЗП","НДФЛ"]
[{"$f":"ROW(2:2)-1","v":1},"Петров Петр","ЗУМ","8-888-111","Саратов","direktor-179",null,null,33,1.5,{"$f":"I2*J2","v":49.5},2]
[2,"Иванов Иван","ЗУМ","8-888-112","Самара","direktor-086","16.02","09.02",42,1.5,{"$f":"I3*J3","v":63},28,null,{"$f":"ДанныеОткрытие!B18","v":"2020-01-15"},"моя шпоргалка"]
[3,"Сидоров Сидр","ПК","8-888-113","Самара"," direktor-212",null,null,22,1.5,{"$f":"I4*J4","v":33},3,null,{"$f":"ДанныеОткрытие!B19","v":"2020-02-08"}]
[4,"Василий Алибабаевич","ЗУМ","8-888-114","Пушкин"," direktor-213",null,null,32,1.5,48,3]
[5,"Доцент","БОСС","8-888-115","Пушкино"," direktor-214",null,null,322,1.5,483,22]
[6,"Котов Кот","ЗУМ","8-888-116","Екатеринбург","direktor-008",null,null,45,1.5,{"$f":"I7*J7","v":67.5},27]
[7,"Смиронов Смирн","ПК","8-888-117","Челябинск","direktor-016",null,null,30,1.5,{"$f":"I8*J8","v":45},15]
[8,"ВАКАНТ",null,"8-888-118"]
[9,"ВАКАНТ",null,"8-888-119"]
[10,"Вика","ПК","8-888-120","Новосибирск","direktor-184@",null,null,43,1.5,{"$f":"I11*J11","v":64.5},21]
[11,"Светлогор","ЗУМ","8-888-121","Новокузнецк","direktor-180@",null,null,55,1.5,{"$f":"I12*J12","v":82.5},2]
[12,"ВАКАНТ",null,"8-888-122"]
[13,"Грачев Грач","Кладовщик","8-888-123","Москва","direktor-136",null,null,46,1.5,{"$f":"I14*J14","v":69},2]
[14,"Карпов Карп",null,"8-888-124","Питер","direktor-137","16.01","09.02",26,1.5,{"$f":"I15*J15","v":39},2]
[15,"ВАКАНТ",null,"8-888-125"]
[16,"ВАКАНТ",null,"8-888-126"]
[17,"ВАКАНТ",null,"8-888-127"]
[{"$f":"ROW(19:19)-1","v":18},"Митя","Ст. кладовщик","8-888-128","С.-Петербург","direktor-008 ",null,null,40,1.5,{"$f":"I19*J19","v":60},2]
[19,"Настя","Ст. кладовщик","8-888-129","Екатеринбург","direktor-109 ",null,null,41,1.5,61.5,22]
[20,"Коля","Ст.кладовщик","8-888-130","Москва","direktor-092 ",null,null,39,1.5,58.5,2]
[21,"Игорь","Ст.кладовщик","8-888-131","Москва","direktor-004 ",null,null,24,1.5,36,3]
[22,"Викор","Кладовщик","8-888-132","Тагил","direktor-221 ",null,null,35,1.5,52.5,1.7]
[23,"Дима","ст.кладовщик","8-888-133","Томск","direktor-160 ",null,null,25,1.5,37.5,2]
[24,"Саша","ст.кладовщик","8-888-134","Ставрополь","direktor-082 ",null,null,14,1.5,21,3]
[null,null,null,null,null,null,null,null,null,{"$f":"IF(M26<0,0,N26)","v":0},{"$f":"I26*1.5/176*J26","v":0},null,{"$f":"H26-G26-1","v":-1},{"$f":"M26*11","v":-11}]
[null,null,null,null,null,null,null,null,null,{"$f":"IF(M27<0,0,N27)","v":0},{"$f":"I27*1.5/176*J27","v":0},null,{"$f":"H27-G27-1","v":-1},{"$f":"M27*11","v":-11}]
[null,null,null,null,null,null,null,null,null,{"$f":"IF(M28<0,0,N28)","v":0},{"$f":"I28*1.5/176*J28","v":0},null,{"$f":"H28-G28-1","v":-1},{"$f":"M28*11","v":-11}]

{"sheet":"Формулы","index":8,"n_rows":143,"n_cols":24,"rows_kept":143,"cut":false,"hidden":false,"merged":[[70,0,73,0],[81,0,107,0],[33,0,56,0]]}
["Данные Персонала"]
[{"$f":"CONCATENATE(B2,\" \",C2,\" \",D2,\" \",E2,\" \",F2,\" \",F82,\" \",G2,H2,\", \",I2,\", \",J2,\" \",K2,L2,\" \",M2,\" \",N2,O2,\" \",P2,\" \",Q2,\" \",R2,\" \",S2,\" \",T2,\" \",U2)","v":"Командировка ЗУМ с 0 по  0, Петров Петр, 8-888-111 (ср.33 ), Саратов, в ФОТ для бюджета на выезд (Ср.ЗП)*1,5 = 49,5 + ндфл 2 руб  (за месячную норму часов+переработки)"},"Командировка",{"$f":"ДанныеПерсонал!C2","v":"ЗУМ"},"с",{"$f":"ДанныеПерсонал!G2","v":"00:00:00"},"по",{"$f":"ДанныеПерсонал!H2","v":"00:00:00"},null,{"$f":"ДанныеПерсонал!B2","v":"Петров Петр"},{"$f":"ДанныеПерсонал!D2","v":"8-888-111"},"(ср.",{"$f":"ДанныеПерсонал!I2","v":33},"),",{"$f":"ДанныеПерсонал!E2","v":"Саратов"},",","в ФОТ для бюджета на выезд (Ср.ЗП)*1,5 =",{"$f":"ДанныеПерсонал!K2","v":49.5},"+ ндфл",{"$f":"ДанныеПерсонал!L2","v":2},"руб"," (за месячную норму часов+переработки)",null,null,{"$f":"ДанныеПерсонал!F2","v":"direktor-179"}]
["Командировка ЗУМ с 16.02 по  09.02, Иванов Иван, 8-888-112 (ср.42 ), Самара, в ФОТ для бюджета на выезд (Ср.ЗП)*1,5 = 63 + ндфл 28 руб  (за месячную норму часов+переработки)","Командировка",{"$f":"ДанныеПерсонал!C3","v":"ЗУМ"},"с",{"$f":"ДанныеПерсонал!G3","v":"16.02"},"по",{"$f":"ДанныеПерсонал!H3","v":"09.02"},null,{"$f":"ДанныеПерсонал!B3","v":"Иванов Иван"},{"$f":"ДанныеПерсонал!D3","v":"8-888-112"},"(ср.",{"$f":"ДанныеПерсонал!I3","v":42},"),",{"$f":"ДанныеПерсонал!E3","v":"Самара"},",","в ФОТ для бюджета на выезд (Ср.ЗП)*1,5 =",{"$f":"ДанныеПерсонал!K3","v":63},"+ ндфл",{"$f":"ДанныеПерсонал!L3","v":28},"руб"," (за месячную норму часов+переработки)",null,null,{"$f":"ДанныеПерсонал!F3","v":"direktor-086"}]
["Командировка ПК с 0 по  0, Сидоров Сидр, 8-888-113 (ср.22 ), Самара, в ФОТ для бюджета на выезд (Ср.ЗП)*1,5 = 33 + ндфл 3 руб  (за месячную норму часов+переработки)","Командировка",{"$f":"ДанныеПерсонал!C4","v":"ПК"},"с",{"$f":"ДанныеПерсонал!G4","v":"00:00:00"},"по",{"$f":"ДанныеПерсонал!H4","v":"00:00:00"},null,{"$f":"ДанныеПерсонал!B4","v":"Сидоров Сидр"},{"$f":"ДанныеПерсонал!D4","v":"8-888-113"},"(ср.",{"$f":"ДанныеПерсонал!I4","v":22},"),",{"$f":"ДанныеПерсонал!E4","v":"Самара"},",","в ФОТ для бюджета на выезд (Ср.ЗП)*1,5 =",{"$f":"ДанныеПерсонал!K4","v":33},"+ ндфл",{"$f":"ДанныеПерсонал!L4","v":3},"руб"," (за месячную норму часов+переработки)",null,null,{"$f":"ДанныеПерсонал!F4","v":" direktor-212"}]
["Командировка ЗУМ с 0 по  0, Василий Алибабаевич, 8-888-114 (ср.32 ), Пушкин, в ФОТ для бюджета на выезд (Ср.ЗП)*1,5 = 48 + ндфл 3 руб  (за месячную норму часов+переработки)","Командировка",{"$f":"ДанныеПерсонал!C5","v":"ЗУМ"},"с",{"$f":"ДанныеПерсонал!G5","v":"00:00:00"},"по",{"$f":"ДанныеПерсонал!H5","v":"00:00:00"},null,{"$f":"ДанныеПерсонал!B5","v":"Василий Алибабаевич"},{"$f":"ДанныеПерсонал!D5","v":"8-888-114"},"(ср.",{"$f":"ДанныеПерсонал!I5","v":32},"),",{"$f":"ДанныеПерсонал!E5","v":"Пушкин"},",","в ФОТ для бюджета на выезд (Ср.ЗП)*1,5 =",{"$f":"ДанныеПерсонал!K5","v":48},"+ ндфл",{"$f":"ДанныеПерсонал!L5","v":3},"руб"," (за месячную норму часов+переработки)",null,null,{"$f":"ДанныеПерсонал!F5","v":" direktor-213"}]
["Командировка БОСС с 0 по  0, Доцент, 8-888-115 (ср.322 ), Пушкино, в ФОТ для бюджета на выезд (Ср.ЗП)*1,5 = 483 + ндфл 22 руб  (за месячную норму часов+переработки)","Командировка",{"$f":"ДанныеПерсонал!C6","v":"БОСС"},"с",{"$f":"ДанныеПерсонал!G6","v":"00:00:00"},"по",{"$f":"ДанныеПерсонал!H6","v":"00:00:00"},null,{"$f":"ДанныеПерсонал!B6","v":"Доцент"},{"$f":"ДанныеПерсонал!D6","v":"8-888-115"},"(ср.",{"$f":"ДанныеПерсонал!I6","v":322},"),",{"$f":"ДанныеПерсонал!E6","v":"Пушкино"},",","в ФОТ для бюджета на выезд (Ср.ЗП)*1,5 =",{"$f":"ДанныеПерсонал!K6","v":483},"+ ндфл",{"$f":"ДанныеПерсонал!L6","v":22},"руб"," (за месячную норму часов+переработки)",null,null,{"$f":"ДанныеПерсонал!F6","v":" direktor-214"}]
["Командировка ЗУМ с 0 по  0, Котов Кот, 8-888-116 (ср.45 ), Екатеринбург, в ФОТ для бюджета на выезд (Ср.ЗП)*1,5 = 67,5 + ндфл 27 руб  (за месячную норму часов+переработки)","Командировка",{"$f":"ДанныеПерсонал!C7","v":"ЗУМ"},"с",{"$f":"ДанныеПерсонал!G7","v":"00:00:00"},"по",{"$f":"ДанныеПерсонал!H7","v":"00:00:00"},null,{"$f":"ДанныеПерсонал!B7","v":"Котов Кот"},{"$f":"ДанныеПерсонал!D7","v":"8-888-116"},"(ср.",{"$f":"ДанныеПерсонал!I7","v":45},"),",{"$f":"ДанныеПерсонал!E7","v":"Екатеринбург"},",","в ФОТ для бюджета на выезд (Ср.ЗП)*1,5 =",{"$f":"ДанныеПерсонал!K7","v":67.5},"+ ндфл",{"$f":"ДанныеПерсонал!L7","v":27},"руб"," (за месячную норму часов+переработки)",null,null,{"$f":"ДанныеПерсонал!F7","v":"direktor-008"}]
["Командировка ПК с 0 по  0, Смиронов Смирн, 8-888-117 (ср.30 ), Челябинск, в ФОТ для бюджета на выезд (Ср.ЗП)*1,5 = 45 + ндфл 15 руб  (за месячную норму часов+переработки)","Командировка",{"$f":"ДанныеПерсонал!C8","v":"ПК"},"с",{"$f":"ДанныеПерсонал!G8","v":"00:00:00"},"по",{"$f":"ДанныеПерсонал!H8","v":"00:00:00"},null,{"$f":"ДанныеПерсонал!B8","v":"Смиронов Смирн"},{"$f":"ДанныеПерсонал!D8","v":"8-888-117"},"(ср.",{"$f":"ДанныеПерсонал!I8","v":30},"),",{"$f":"ДанныеПерсонал!E8","v":"Челябинск"},",","в ФОТ для бюджета на выезд (Ср.ЗП)*1,5 =",{"$f":"ДанныеПерсонал!K8","v":45},"+ ндфл",{"$f":"ДанныеПерсонал!L8","v":15},"руб"," (за месячную норму часов+переработки)",null,null,{"$f":"ДанныеПерсонал!F8","v":"direktor-016"}]
["Командировка 0 с 0 по  0, ВАКАНТ, 8-888-118 (ср.0 ), 0, в ФОТ для бюджета на выезд (Ср.ЗП)*1,5 = 0 + ндфл 0 руб  (за месячную норму часов+переработки)","Командировка",{"$f":"ДанныеПерсонал!C9","v":0},"с",{"$f":"ДанныеПерсонал!G9","v":"00:00:00"},"по",{"$f":"ДанныеПерсонал!H9","v":"00:00:00"},null,{"$f":"ДанныеПерсонал!B9","v":"ВАКАНТ"},{"$f":"ДанныеПерсонал!D9","v":"8-888-118"},"(ср.",{"$f":"ДанныеПерсонал!I9","v":0},"),",{"$f":"ДанныеПерсонал!E9","v":0},",","в ФОТ для бюджета на выезд (Ср.ЗП)*1,5 =",{"$f":"ДанныеПерсонал!K9","v":0},"+ ндфл",{"$f":"ДанныеПерсонал!L9","v":0},"руб"," (за месячную норму часов+переработки)",null,null,{"$f":"ДанныеПерсонал!F9","v":0}]
["Командировка 0 с 0 по  0, ВАКАНТ, 8-888-119 (ср.0 ), 0, в ФОТ для бюджета на выезд (Ср.ЗП)*1,5 = 0 + ндфл 0 руб  (за месячную норму часов+переработки)","Командировка",{"$f":"ДанныеПерсонал!C10","v":0},"с",{"$f":"ДанныеПерсонал!G10","v":"00:00:00"},"по",{"$f":"ДанныеПерсонал!H10","v":"00:00:00"},null,{"$f":"ДанныеПерсонал!B10","v":"ВАКАНТ"},{"$f":"ДанныеПерсонал!D10","v":"8-888-119"},"(ср.",{"$f":"ДанныеПерсонал!I10","v":0},"),",{"$f":"ДанныеПерсонал!E10","v":0},",","в ФОТ для бюджета на выезд (Ср.ЗП)*1,5 =",{"$f":"ДанныеПерсонал!K10","v":0},"+ ндфл",{"$f":"ДанныеПерсонал!L10","v":0},"руб"," (за месячную норму часов+переработки)",null,null,{"$f":"ДанныеПерсонал!F10","v":0}]
["Командировка ПК с 0 по  0, Вика, 8-888-120 (ср.43 ), Новосибирск, в ФОТ для бюджета на выезд (Ср.ЗП)*1,5 = 64,5 + ндфл 21 руб  (за месячную норму часов+переработки)","Командировка",{"$f":"ДанныеПерсонал!C11","v":"ПК"},"с",{"$f":"ДанныеПерсонал!G11","v":"00:00:00"},"по",{"$f":"ДанныеПерсонал!H11","v":"00:00:00"},null,{"$f":"ДанныеПерсонал!B11","v":"Вика"},{"$f":"ДанныеПерсонал!D11","v":"8-888-120"},"(ср.",{"$f":"ДанныеПерсонал!I11","v":43},"),",{"$f":"ДанныеПерсонал!E11","v":"Новосибирск"},",","в ФОТ для бюджета на выезд (Ср.ЗП)*1,5 =",{"$f":"ДанныеПерсонал!K11","v":64.5},"+ ндфл",{"$f":"ДанныеПерсонал!L11","v":21},"руб"," (за месячную норму часов+переработки)",null,null,{"$f":"ДанныеПерсонал!F11","v":"direktor-184@"}]
["Командировка ЗУМ с 0 по  0, Светлогор, 8-888-121 (ср.55 ), Новокузнецк, в ФОТ для бюджета на выезд (Ср.ЗП)*1,5 = 82,5 + ндфл 2 руб  (за месячную норму часов+переработки)","Командировка",{"$f":"ДанныеПерсонал!C12","v":"ЗУМ"},"с",{"$f":"ДанныеПерсонал!G12","v":"00:00:00"},"по",{"$f":"ДанныеПерсонал!H12","v":"00:00:00"},null,{"$f":"ДанныеПерсонал!B12","v":"Светлогор"},{"$f":"ДанныеПерсонал!D12","v":"8-888-121"},"(ср.",{"$f":"ДанныеПерсонал!I12","v":55},"),",{"$f":"ДанныеПерсонал!E12","v":"Новокузнецк"},",","в ФОТ для бюджета на выезд (Ср.ЗП)*1,5 =",{"$f":"ДанныеПерсонал!K12","v":82.5},"+ ндфл",{"$f":"ДанныеПерсонал!L12","v":2},"руб"," (за месячную норму часов+переработки)",null,null,{"$f":"ДанныеПерсонал!F12","v":"direktor-180@"}]
["Командировка 0 с 0 по  0, ВАКАНТ, 8-888-122 (ср.0 ), 0, в ФОТ для бюджета на выезд (Ср.ЗП)*1,5 = 0 + ндфл 0 руб  (за месячную норму часов+переработки)","Командировка",{"$f":"ДанныеПерсонал!C13","v":0},"с",{"$f":"ДанныеПерсонал!G13","v":"00:00:00"},"по",{"$f":"ДанныеПерсонал!H13","v":"00:00:00"},null,{"$f":"ДанныеПерсонал!B13","v":"ВАКАНТ"},{"$f":"ДанныеПерсонал!D13","v":"8-888-122"},"(ср.",{"$f":"ДанныеПерсонал!I13","v":0},"),",{"$f":"ДанныеПерсонал!E13","v":0},",","в ФОТ для бюджета на выезд (Ср.ЗП)*1,5 =",{"$f":"ДанныеПерсонал!K13","v":0},"+ ндфл",{"$f":"ДанныеПерсонал!L13","v":0},"руб"," (за месячную норму часов+переработки)",null,null,{"$f":"ДанныеПерсонал!F13","v":0}]
["Командировка Кладовщик с 0 по  0, Грачев Грач, 8-888-123 (ср.46 ), Москва, в ФОТ для бюджета на выезд (Ср.ЗП)*1,5 = 69 + ндфл 2 руб  (за месячную норму часов+переработки)","Командировка",{"$f":"ДанныеПерсонал!C14","v":"Кладовщик"},"с",{"$f":"ДанныеПерсонал!G14","v":"00:00:00"},"по",{"$f":"ДанныеПерсонал!H14","v":"00:00:00"},null,{"$f":"ДанныеПерсонал!B14","v":"Грачев Грач"},{"$f":"ДанныеПерсонал!D14","v":"8-888-123"},"(ср.",{"$f":"ДанныеПерсонал!I14","v":46},"),",{"$f":"ДанныеПерсонал!E14","v":"Москва"},",","в ФОТ для бюджета на выезд (Ср.ЗП)*1,5 =",{"$f":"ДанныеПерсонал!K14","v":69},"+ ндфл",{"$f":"ДанныеПерсонал!L14","v":2},"руб"," (за месячную норму часов+переработки)",null,null,{"$f":"ДанныеПерсонал!F14","v":"direktor-136"}]
["Командировка 0 с 16.01 по  09.02, Карпов Карп, 8-888-124 (ср.26 ), Питер, в ФОТ для бюджета на выезд (Ср.ЗП)*1,5 = 39 + ндфл 2 руб  (за месячную норму часов+переработки)","Командировка",{"$f":"ДанныеПерсонал!C15","v":0},"с",{"$f":"ДанныеПерсонал!G15","v":"16.01"},"по",{"$f":"ДанныеПерсонал!H15","v":"09.02"},null,{"$f":"ДанныеПерсонал!B15","v":"Карпов Карп"},{"$f":"ДанныеПерсонал!D15","v":"8-888-124"},"(ср.",{"$f":"ДанныеПерсонал!I15","v":26},"),",{"$f":"ДанныеПерсонал!E15","v":"Питер"},",","в ФОТ для бюджета на выезд (Ср.ЗП)*1,5 =",{"$f":"ДанныеПерсонал!K15","v":39},"+ ндфл",{"$f":"ДанныеПерсонал!L15","v":2},"руб"," (за месячную норму часов+переработки)",null,null,{"$f":"ДанныеПерсонал!F15","v":"direktor-137"}]
["Командировка 0 с 0 по  0, ВАКАНТ, 8-888-125 (ср.0 ), 0, в ФОТ для бюджета на выезд (Ср.ЗП)*1,5 = 0 + ндфл 0 руб  (за месячную норму часов+переработки)","Командировка",{"$f":"ДанныеПерсонал!C16","v":0},"с",{"$f":"ДанныеПерсонал!G16","v":"00:00:00"},"по",{"$f":"ДанныеПерсонал!H16","v":"00:00:00"},null,{"$f":"ДанныеПерсонал!B16","v":"ВАКАНТ"},{"$f":"ДанныеПерсонал!D16","v":"8-888-125"},"(ср.",{"$f":"ДанныеПерсонал!I16","v":0},"),",{"$f":"ДанныеПерсонал!E16","v":0},",","в ФОТ для бюджета на выезд (Ср.ЗП)*1,5 =",{"$f":"ДанныеПерсонал!K16","v":0},"+ ндфл",{"$f":"ДанныеПерсонал!L16","v":0},"руб"," (за месячную норму часов+переработки)",null,null,{"$f":"ДанныеПерсонал!F16","v":0}]
["Командировка 0 с 0 по  0, ВАКАНТ, 8-888-126 (ср.0 ), 0, в ФОТ для бюджета на выезд (Ср.ЗП)*1,5 = 0 + ндфл 0 руб  (за месячную норму часов+переработки)","Командировка",{"$f":"ДанныеПерсонал!C17","v":0},"с",{"$f":"ДанныеПерсонал!G17","v":"00:00:00"},"по",{"$f":"ДанныеПерсонал!H17","v":"00:00:00"},null,{"$f":"ДанныеПерсонал!B17","v":"ВАКАНТ"},{"$f":"ДанныеПерсонал!D17","v":"8-888-126"},"(ср.",{"$f":"ДанныеПерсонал!I17","v":0},"),",{"$f":"ДанныеПерсонал!E17","v":0},",","в ФОТ для бюджета на выезд (Ср.ЗП)*1,5 =",{"$f":"ДанныеПерсонал!K17","v":0},"+ ндфл",{"$f":"ДанныеПерсонал!L17","v":0},"руб"," (за месячную норму часов+переработки)",null,null,{"$f":"ДанныеПерсонал!F17","v":0}]
[{"$f":"CONCATENATE(B18,\" \",C18,\" \",D18,\" \",E18,\" \",F18,\" \",F98,\" \",G18,H18,\", \",I18,\", \",J18,\" \",K18,L18,\" \",M18,\" \",N18,O18,\" \",P18,\" \",Q18,\" \",R18,\" \",S18,\" \",T18,\" \",U18)","v":"Командировка 0 с 0 по  0, ВАКАНТ, 8-888-127 (ср.0 ), 0, в ФОТ для бюджета на выезд (Ср.ЗП)*1,5 = 0 + ндфл 0 руб  (за месячную норму часов+переработки)"},"Командировка",{"$f":"ДанныеПерсонал!C18","v":0},"с",{"$f":"ДанныеПерсонал!G18","v":"00:00:00"},"по",{"$f":"ДанныеПерсонал!H18","v":"00:00:00"},null,{"$f":"ДанныеПерсонал!B18","v":"ВАКАНТ"},{"$f":"ДанныеПерсонал!D18","v":"8-888-127"},"(ср.",{"$f":"ДанныеПерсонал!I18","v":0},"),",{"$f":"ДанныеПерсонал!E18","v":0},",","в ФОТ для бюджета на выезд (Ср.ЗП)*1,5 =",{"$f":"ДанныеПерсонал!K18","v":0},"+ ндфл",{"$f":"ДанныеПерсонал!L18","v":0},"руб"," (за месячную норму часов+переработки)",null,null,{"$f":"ДанныеПерсонал!F18","v":0}]
["Командировка Ст. кладовщик с 0 по  0, Митя, 8-888-128 (ср.40 ), С.-Петербург, в ФОТ для бюджета на выезд (Ср.ЗП)*1,5 = 60 + ндфл 2 руб  (за месячную норму часов+переработки)","Командировка",{"$f":"ДанныеПерсонал!C19","v":"Ст. кладовщик"},"с",{"$f":"ДанныеПерсонал!G19","v":"00:00:00"},"по",{"$f":"ДанныеПерсонал!H19","v":"00:00:00"},null,{"$f":"ДанныеПерсонал!B19","v":"Митя"},{"$f":"ДанныеПерсонал!D19","v":"8-888-128"},"(ср.",{"$f":"ДанныеПерсонал!I19","v":40},"),",{"$f":"ДанныеПерсонал!E19","v":"С.-Петербург"},",","в ФОТ для бюджета на выезд (Ср.ЗП)*1,5 =",{"$f":"ДанныеПерсонал!K19","v":60},"+ ндфл",{"$f":"ДанныеПерсонал!L19","v":2},"руб"," (за месячную норму часов+переработки)",null,null,{"$f":"ДанныеПерсонал!F19","v":"direktor-008 "}]
["Командировка Ст. кладовщик с 0 по  0, Настя, 8-888-129 (ср.41 ), Екатеринбург, в ФОТ для бюджета на выезд (Ср.ЗП)*1,5 = 61,5 + ндфл 22 руб  (за месячную норму часов+переработки)","Командировка",{"$f":"ДанныеПерсонал!C20","v":"Ст. кладовщик"},"с",{"$f":"ДанныеПерсонал!G20","v":"00:00:00"},"по",{"$f":"ДанныеПерсонал!H20","v":"00:00:00"},null,{"$f":"ДанныеПерсонал!B20","v":"Настя"},{"$f":"ДанныеПерсонал!D20","v":"8-888-129"},"(ср.",{"$f":"ДанныеПерсонал!I20","v":41},"),",{"$f":"ДанныеПерсонал!E20","v":"Екатеринбург"},",","в ФОТ для бюджета на выезд (Ср.ЗП)*1,5 =",{"$f":"ДанныеПерсонал!K20","v":61.5},"+ ндфл",{"$f":"ДанныеПерсонал!L20","v":22},"руб"," (за месячную норму часов+переработки)",null,null,{"$f":"ДанныеПерсонал!F20","v":"direktor-109 "}]
["Командировка Ст.кладовщик с 0 по  0, Коля, 8-888-130 (ср.39 ), Москва, в ФОТ для бюджета на выезд (Ср.ЗП)*1,5 = 58,5 + ндфл 2 руб  (за месячную норму часов+переработки)","Командировка",{"$f":"ДанныеПерсонал!C21","v":"Ст.кладовщик"},"с",{"$f":"ДанныеПерсонал!G21","v":"00:00:00"},"по",{"$f":"ДанныеПерсонал!H21","v":"00:00:00"},null,{"$f":"ДанныеПерсонал!B21","v":"Коля"},{"$f":"ДанныеПерсонал!D21","v":"8-888-130"},"(ср.",{"$f":"ДанныеПерсонал!I21","v":39},"),",{"$f":"ДанныеПерсонал!E21","v":"Москва"},",","в ФОТ для бюджета на выезд (Ср.ЗП)*1,5 =",{"$f":"ДанныеПерсонал!K21","v":58.5},"+ ндфл",{"$f":"ДанныеПерсонал!L21","v":2},"руб"," (за месячную норму часов+переработки)",null,null,{"$f":"ДанныеПерсонал!F21","v":"direktor-092 "}]
["Командировка Ст.кладовщик с 0 по  0, Игорь, 8-888-131 (ср.24 ), Москва, в ФОТ для бюджета на выезд (Ср.ЗП)*1,5 = 36 + ндфл 3 руб  (за месячную норму часов+переработки)","Командировка",{"$f":"ДанныеПерсонал!C22","v":"Ст.кладовщик"},"с",{"$f":"ДанныеПерсонал!G22","v":"00:00:00"},"по",{"$f":"ДанныеПерсонал!H22","v":"00:00:00"},null,{"$f":"ДанныеПерсонал!B22","v":"Игорь"},{"$f":"ДанныеПерсонал!D22","v":"8-888-131"},"(ср.",{"$f":"ДанныеПерсонал!I22","v":24},"),",{"$f":"ДанныеПерсонал!E22","v":"Москва"},",","в ФОТ для бюджета на выезд (Ср.ЗП)*1,5 =",{"$f":"ДанныеПерсонал!K22","v":36},"+ ндфл",{"$f":"ДанныеПерсонал!L22","v":3},"руб"," (за месячную норму часов+переработки)",null,null,{"$f":"ДанныеПерсонал!F22","v":"direktor-004 "}]
["Командировка Кладовщик с 0 по  0, Викор, 8-888-132 (ср.35 ), Тагил, в ФОТ для бюджета на выезд (Ср.ЗП)*1,5 = 52,5 + ндфл 1,7 руб  (за месячную норму часов+переработки)","Командировка",{"$f":"ДанныеПерсонал!C23","v":"Кладовщик"},"с",{"$f":"ДанныеПерсонал!G23","v":"00:00:00"},"по",{"$f":"ДанныеПерсонал!H23","v":"00:00:00"},null,{"$f":"ДанныеПерсонал!B23","v":"Викор"},{"$f":"ДанныеПерсонал!D23","v":"8-888-132"},"(ср.",{"$f":"ДанныеПерсонал!I23","v":35},"),",{"$f":"ДанныеПерсонал!E23","v":"Тагил"},",","в ФОТ для бюджета на выезд (Ср.ЗП)*1,5 =",{"$f":"ДанныеПерсонал!K23","v":52.5},"+ ндфл",{"$f":"ДанныеПерсонал!L23","v":1.7},"руб"," (за месячную норму часов+переработки)",null,null,{"$f":"ДанныеПерсонал!F23","v":"direktor-221 "}]
["Командировка ст.кладовщик с 0 по  0, Дима, 8-888-133 (ср.25 ), Томск, в ФОТ для бюджета на выезд (Ср.ЗП)*1,5 = 37,5 + ндфл 2 руб  (за месячную норму часов+переработки)","Командировка",{"$f":"ДанныеПерсонал!C24","v":"ст.кладовщик"},"с",{"$f":"ДанныеПерсонал!G24","v":"00:00:00"},"по",{"$f":"ДанныеПерсонал!H24","v":"00:00:00"},null,{"$f":"ДанныеПерсонал!B24","v":"Дима"},{"$f":"ДанныеПерсонал!D24","v":"8-888-133"},"(ср.",{"$f":"ДанныеПерсонал!I24","v":25},"),",{"$f":"ДанныеПерсонал!E24","v":"Томск"},",","в ФОТ для бюджета на выезд (Ср.ЗП)*1,5 =",{"$f":"ДанныеПерсонал!K24","v":37.5},"+ ндфл",{"$f":"ДанныеПерсонал!L24","v":2},"руб"," (за месячную норму часов+переработки)",null,null,{"$f":"ДанныеПерсонал!F24","v":"direktor-160 "}]
["Командировка ст.кладовщик с 0 по  0, Саша, 8-888-134 (ср.14 ), Ставрополь, в ФОТ для бюджета на выезд (Ср.ЗП)*1,5 = 21 + ндфл 3 руб  (за месячную норму часов+переработки)","Командировка",{"$f":"ДанныеПерсонал!C25","v":"ст.кладовщик"},"с",{"$f":"ДанныеПерсонал!G25","v":"00:00:00"},"по",{"$f":"ДанныеПерсонал!H25","v":"00:00:00"},null,{"$f":"ДанныеПерсонал!B25","v":"Саша"},{"$f":"ДанныеПерсонал!D25","v":"8-888-134"},"(ср.",{"$f":"ДанныеПерсонал!I25","v":14},"),",{"$f":"ДанныеПерсонал!E25","v":"Ставрополь"},",","в ФОТ для бюджета на выезд (Ср.ЗП)*1,5 =",{"$f":"ДанныеПерсонал!K25","v":21},"+ ндфл",{"$f":"ДанныеПерсонал!L25","v":3},"руб"," (за месячную норму часов+переработки)",null,null,{"$f":"ДанныеПерсонал!F25","v":"direktor-082 "}]
[]
[{"$f":"CONCATENATE(B27,\" \",C27,\" \",D27, E27)","v":"г. Железнодорожный ТЦ Центральный"},"г.",{"$f":"ДанныеОткрытие!B1","v":"Железнодорожный"},"ТЦ ",{"$f":"ДанныеОткрытие!B2","v":"Центральный"}]
[{"$f":"CONCATENATE(B28,\" \",TEXT(C28,\"ДД.ММ\"),\" \",D28,\" \",TEXT(E28,\"ДД.ММ\"),\" \",F28,\" \",G28,\" \",I28)","v":"Аренда учебного класса с 11.01 по 15.01 - 4 дня"},"Аренда учебного класса с",{"$f":"ДанныеОткрытие!B4","v":"2020-01-11"},"по",{"$f":"ДанныеОткрытие!B5","v":"2020-01-15"},"-",{"$f":"ДанныеОткрытие!C6","v":4},null,"дня"]
[{"$f":"CONCATENATE(B29,\" \",TEXT(C29,\"ДД.ММ\"),\" \",D29,\" \",TEXT(E29,\"ДД.ММ\"))","v":"Командировка тренера №1 - с 10.01 по 02.02"},"Командировка тренера №1 - с",{"$f":"ДанныеОткрытие!B7","v":"2020-01-10"},"по",{"$f":"ДанныеОткрытие!B8","v":"2020-02-02"}]
[{"$f":"CONCATENATE(B30,\" \",C30,\" \",D30,\" \",E30)","v":"Командировка тренера №2 - с 0 по 0"},"Командировка тренера №2 - с",{"$f":"ДанныеОткрытие!B9","v":0},"по",{"$f":"ДанныеОткрытие!B10","v":0}]
["B28;\" \";C28;\" \";D28;\" \";E28;\" \";F28;\" \";G28;\" \";I28"]
["Для отправки в Whatsapp"]
[{"$f":"CONCATENATE(\"SU \",ДанныеОткрытие!B1,\" \",ДанныеОткрытие!A2,\" \",ДанныеОткрытие!B2)","v":"SU Железнодорожный ТЦ Центральный"},{"$f":"CONCATENATE(C33,\" \",D33,\" \",E33)","v":"Группа г. Железнодорожный ТЦ Центральный"},"Группа г.",{"$f":"ДанныеОткрытие!B1","v":"Железнодорожный"},{"$f":"CONCATENATE(ДанныеОткрытие!A2,\" \",ДанныеОткрытие!B2)","v":"ТЦ Центральный"}]
[{"$f":"CONCATENATE(B33,CHAR(10),B34,CHAR(10),B35,CHAR(10),B36,CHAR(10),B37,CHAR(10),B38,CHAR(10),B39,CHAR(10),B40,CHAR(10),B41,CHAR(10),B42,CHAR(10),B43,CHAR(10),B44,CHAR(10),B45,CHAR(10),B46,CHAR(10),B47,CHAR(10),B48,CHAR(10),B49,CHAR(10),B50,CHAR(10),B51,CHAR(10),B52,CHAR(10),B53,CHAR(10),B54,CHAR(10),B55,CHAR(10),B56,CHAR(10),B57,CHAR(10),B59,CHAR(10),B60,CHAR(10),B61,CHAR(10),B62,CHAR(10),B63,CHAR(10),CHAR(10),B64,B65,D66,\" \",E66,\",\",\" \",B66,B67,\" \",D33,\",\",\" \",ДанныеОткрытие!A2,\" \",ДанныеОткрытие!B2,\",\",\" \",ДанныеОткрытие!B3,\"\n\",A61)","v":"Группа г. Железнодорожный ТЦ Центральный\nПетров Петр - 0 по 0\nИванов Иван - 16.02 по 09.02\nСидоров Сидр - 0 по 0\nВасилий Алибабаевич - 0 по 0\nДоцент - 0 по 0\nКотов Кот - 0 по 0\nСмиронов Смирн - 0 по 0\nВАКАНТ - 0 по 0\nВАКАНТ - 0 по 0\nВика - 0 по 0\nСветлогор - 0 по 0\nВАКАНТ - 0 по 0\nГрачев Грач - 0 по 0\nКарпов Карп - 16.01 по 09.02\nВАКАНТ - 0 по 0\nВАКАНТ - 0 по 0\nВАКАНТ - 0 по 0\nМитя - 0 по 0\nНастя - 0 по 0\nКоля - 0 по 0\nИгорь - 0 по 0\nВикор - 0 по 0\nДима - 0 по 0\nСаша - 0 по 0\nПервая поставка - 16.01\nТехническое открытие - 31.01\nПраздничное открытие - 0\nРуководитель проекта - ГС, 8-102\nТренер на объекте - крок, 8-907\n\n_________\nДаты командировок указаны без учета дороги! Только даты приезда и отъезда на/с проект(а), при составлении заявки и расчете суточных - учитывайте время необходимое на дорогу!\n_________\nЭлектронная почта руководителя проекта,  ГС sg@m.ru, для подачи заявок на получение денежных средств\n_______\nАдрес объекта: г. Железнодорожный, ТЦ Центральный, Калиновского 1\n_________\nКоллеги АГЗ, напоминаю о табелировании команды стартап в табеле на google диске и о передаче ссылки УМу перед отъездом и напоминании УМу о табелировании команды стартап в данном табеле!"},{"$f":"CONCATENATE(C34,\" \",D34,\" \",E34,\" \",F34, G34)","v":"Петров Петр - 0 по 0"},{"$f":"ДанныеПерсонал!B2","v":"Петров Петр"},"-",{"$f":"ДанныеПерсонал!G2","v":0},"по ",{"$f":"ДанныеПерсонал!H2","v":0}]
[null,{"$f":"CONCATENATE(C35,\" \",D35,\" \",E35,\" \",F35, G35)","v":"Иванов Иван - 16.02 по 09.02"},{"$f":"ДанныеПерсонал!B3","v":"Иванов Иван"},"-",{"$f":"ДанныеПерсонал!G3","v":"16.02"},"по ",{"$f":"ДанныеПерсонал!H3","v":"09.02"}]
[null,{"$f":"CONCATENATE(C36,\" \",D36,\" \",E36,\" \",F36, G36)","v":"Сидоров Сидр - 0 по 0"},{"$f":"ДанныеПерсонал!B4","v":"Сидоров Сидр"},"-",{"$f":"ДанныеПерсонал!G4","v":0},"по ",{"$f":"ДанныеПерсонал!H4","v":0}]
[null,"Василий Алибабаевич - 0 по 0",{"$f":"ДанныеПерсонал!B5","v":"Василий Алибабаевич"},"-",{"$f":"ДанныеПерсонал!G5","v":0},"по ",{"$f":"ДанныеПерсонал!H5","v":0},null,null,null,null,null,"(",{"$f":"ДанныеПерсонал!J22","v":1.5},"часов)"]
[null,"Доцент - 0 по 0",{"$f":"ДанныеПерсонал!B6","v":"Доцент"},"-",{"$f":"ДанныеПерсонал!G6","v":0},"по ",{"$f":"ДанныеПерсонал!H6","v":0},null,null,null,null,null,"(",{"$f":"ДанныеПерсонал!J26","v":0},"часов)"]
[null,"Котов Кот - 0 по 0",{"$f":"ДанныеПерсонал!B7","v":"Котов Кот"},"-",{"$f":"ДанныеПерсонал!G7","v":0},"по ",{"$f":"ДанныеПерсонал!H7","v":0},null,null,null,null,null,"(",{"$f":"ДанныеПерсонал!J27","v":0},"часов)"]
[null,"Смиронов Смирн - 0 по 0",{"$f":"ДанныеПерсонал!B8","v":"Смиронов Смирн"},"-",{"$f":"ДанныеПерсонал!G8","v":0},"по ",{"$f":"ДанныеПерсонал!H8","v":0},null,null,null,null,null,"(",{"$f":"ДанныеПерсонал!J28","v":0},"часов)"]
[null,"ВАКАНТ - 0 по 0",{"$f":"ДанныеПерсонал!B9","v":"ВАКАНТ"},"-",{"$f":"ДанныеПерсонал!G9","v":0},"по ",{"$f":"ДанныеПерсонал!H9","v":0}]
[null,"ВАКАНТ - 0 по 0",{"$f":"ДанныеПерсонал!B10","v":"ВАКАНТ"},"-",{"$f":"ДанныеПерсонал!G10","v":0},"по ",{"$f":"ДанныеПерсонал!H10","v":0}]
[null,"Вика - 0 по 0",{"$f":"ДанныеПерсонал!B11","v":"Вика"},"-",{"$f":"ДанныеПерсонал!G11","v":0},"по ",{"$f":"ДанныеПерсонал!H11","v":0}]
[null,"Светлогор - 0 по 0",{"$f":"ДанныеПерсонал!B12","v":"Светлогор"},"-",{"$f":"ДанныеПерсонал!G12","v":0},"по ",{"$f":"ДанныеПерсонал!H12","v":0}]
[null,"ВАКАНТ - 0 по 0",{"$f":"ДанныеПерсонал!B13","v":"ВАКАНТ"},"-",{"$f":"ДанныеПерсонал!G13","v":0},"по ",{"$f":"ДанныеПерсонал!H13","v":0}]
[null,"Грачев Грач - 0 по 0",{"$f":"ДанныеПерсонал!B14","v":"Грачев Грач"},"-",{"$f":"ДанныеПерсонал!G14","v":0},"по ",{"$f":"ДанныеПерсонал!H14","v":0}]
[null,"Карпов Карп - 16.01 по 09.02",{"$f":"ДанныеПерсонал!B15","v":"Карпов Карп"},"-",{"$f":"ДанныеПерсонал!G15","v":"16.01"},"по ",{"$f":"ДанныеПерсонал!H15","v":"09.02"}]
[null,"ВАКАНТ - 0 по 0",{"$f":"ДанныеПерсонал!B16","v":"ВАКАНТ"},"-",{"$f":"ДанныеПерсонал!G16","v":0},"по ",{"$f":"ДанныеПерсонал!H16","v":0}]
[null,"ВАКАНТ - 0 по 0",{"$f":"ДанныеПерсонал!B17","v":"ВАКАНТ"},"-",{"$f":"ДанныеПерсонал!G17","v":0},"по ",{"$f":"ДанныеПерсонал!H17","v":0}]
[null,"ВАКАНТ - 0 по 0",{"$f":"ДанныеПерсонал!B18","v":"ВАКАНТ"},"-",{"$f":"ДанныеПерсонал!G18","v":0},"по ",{"$f":"ДанныеПерсонал!H18","v":0}]
[null,"Митя - 0 по 0",{"$f":"ДанныеПерсонал!B19","v":"Митя"},"-",{"$f":"ДанныеПерсонал!G19","v":0},"по ",{"$f":"ДанныеПерсонал!H19","v":0}]
[null,"Настя - 0 по 0",{"$f":"ДанныеПерсонал!B20","v":"Настя"},"-",{"$f":"ДанныеПерсонал!G20","v":0},"по ",{"$f":"ДанныеПерсонал!H20","v":0}]
[null,"Коля - 0 по 0",{"$f":"ДанныеПерсонал!B21","v":"Коля"},"-",{"$f":"ДанныеПерсонал!G21","v":0},"по ",{"$f":"ДанныеПерсонал!H21","v":0}]
[null,"Игорь - 0 по 0",{"$f":"ДанныеПерсонал!B22","v":"Игорь"},"-",{"$f":"ДанныеПерсонал!G22","v":0},"по ",{"$f":"ДанныеПерсонал!H22","v":0}]
[null,"Викор - 0 по 0",{"$f":"ДанныеПерсонал!B23","v":"Викор"},"-",{"$f":"ДанныеПерсонал!G23","v":0},"по ",{"$f":"ДанныеПерсонал!H23","v":0}]
[null,"Дима - 0 по 0",{"$f":"ДанныеПерсонал!B24","v":"Дима"},"-",{"$f":"ДанныеПерсонал!G24","v":0},"по ",{"$f":"ДанныеПерсонал!H24","v":0}]
[null,"Саша - 0 по 0",{"$f":"ДанныеПерсонал!B25","v":"Саша"},"-",{"$f":"ДанныеПерсонал!G25","v":0},"по ",{"$f":"ДанныеПерсонал!H25","v":0}]
[]
[{"$f":"CONCATENATE(B33,CHAR(10),B34,CHAR(10),B35,CHAR(10),B36,CHAR(10),B37,CHAR(10),B38,CHAR(10),B39,CHAR(10),B40,CHAR(10),B41,CHAR(10),B42,CHAR(10),B43,CHAR(10),B44,CHAR(10),B45,CHAR(10),B46,CHAR(10),B47,CHAR(10),B48,CHAR(10),B59,CHAR(10),B60,CHAR(10),B61,CHAR(10),B62,CHAR(10),B63,CHAR(10),B64,B65,D66,\" \",E66,\",\",\" \",B66,B67,\" \",D33,\",\",\" \",ДанныеОткрытие!A2,\" \",ДанныеОткрытие!B2,\",\",\" \",ДанныеОткрытие!B3,\"\n\",A61,)","v":"Группа г. Железнодорожный ТЦ Центральный\nПетров Петр - 0 по 0\nИванов Иван - 16.02 по 09.02\nСидоров Сидр - 0 по 0\nВасилий Алибабаевич - 0 по 0\nДоцент - 0 по 0\nКотов Кот - 0 по 0\nСмиронов Смирн - 0 по 0\nВАКАНТ - 0 по 0\nВАКАНТ - 0 по 0\nВика - 0 по 0\nСветлогор - 0 по 0\nВАКАНТ - 0 по 0\nГрачев Грач - 0 по 0\nКарпов Карп - 16.01 по 09.02\nВАКАНТ - 0 по 0\nПервая поставка - 16.01\nТехническое открытие - 31.01\nПраздничное открытие - 0\nРуководитель проекта - ГС, 8-102\nТренер на объекте - крок, 8-907\n_________\nДаты командировок указаны без учета дороги! Только даты приезда и отъезда на/с проект(а), при составлении заявки и расчете суточных - учитывайте время необходимое на дорогу!\n_________\nЭлектронная почта руководителя проекта,  ГС sg@m.ru, для подачи заявок на получение денежных средств\n_______\nАдрес объекта: г. Железнодорожный, ТЦ Центральный, Калиновского 1\n_________\nКоллеги АГЗ, напоминаю о табелировании команды стартап в табеле на google диске и о передаче ссылки УМу перед отъездом и напоминании УМу о табелировании команды стартап в данном табеле!"},{"$f":"CONCATENATE(C59,\" - \",TEXT(D59,\"ДД.ММ\"))","v":"Первая поставка - 16.01"},"Первая поставка",{"$f":"ДанныеОткрытие!B11","v":"2020-01-16"}]
[null,{"$f":"CONCATENATE(C60,\" - \",TEXT(D60,\"ДД.ММ\"))","v":"Техническое открытие - 31.01"},"Техническое открытие",{"$f":"ДанныеОткрытие!B12","v":"2020-01-31"}]
["_________\nКоллеги АГЗ, напоминаю о табелировании команды стартап в табеле на google диске и о передаче ссылки УМу перед отъездом и напоминании УМу о табелировании команды стартап в данном табеле!",{"$f":"CONCATENATE(C61,\" - \",D61)","v":"Праздничное открытие - 0"},"Праздничное открытие",{"$f":"ДанныеОткрытие!B13","v":0}]
[null,{"$f":"CONCATENATE(C62,\" - \",D62,\", \",E62)","v":"Руководитель проекта - ГС, 8-102"},"Руководитель проекта",{"$f":"ДанныеОткрытие!B14","v":"ГС"},{"$f":"LOOKUP(D62,I111:I120,J111:J120)","v":"8-102"}]
[null,{"$f":"CONCATENATE(C63,\" - \",D63,\", \",E63)","v":"Тренер на объекте - крок, 8-907"},"Тренер на объекте",{"$f":"LOOKUP(C64,E129:E143,C129:C143)","v":"крок"},{"$f":"LOOKUP(D63,C111:C127,D111:D127)","v":"8-907"}]
[null,"_________\nДаты командировок указаны без учета дороги! Только даты приезда и отъезда на/с проект(а), при составлении заявки и расчете суточных - учитывайте время необходимое на дорогу!\n_________\n",{"$f":"ДанныеОткрытие!B15","v":2}]
[null,"Электронная почта руководителя проекта,  "]
[null,"для подачи заявок на получение денежных средств\n_______\n","Руководитель проекта",{"$f":"ДанныеОткрытие!B14","v":"ГС"},{"$f":"LOOKUP(D62,I111:I120,K111:K120)","v":"sg@m.ru"}]
[null,"Адрес объекта: г."]
[]
["Текст письмо РП"]
[{"$f":"CONCATENATE(\"РП \",ДанныеОткрытие!B1,\" \",ДанныеОткрытие!A2,\" \",ДанныеОткрытие!B2)","v":"РП Железнодорожный ТЦ Центральный"},null,null,{"$f":"ДанныеОткрытие!B1","v":"Железнодорожный"}]
[{"$f":"CONCATENATE(B72,CHAR(10),B73,\"\n\n\n\n\",B74)","v":"Во вложении файл с датами командировки в г. Железнодорожный старт-ап команды, ФИО участников и их расчетная часть з/п. \nК командировкам всех сотрудников добавлен 1 дня -до и 1 день -после, на заселение и выселение, время требуемое на дорогу до/с объекта не учтено. \nПрошу сообщить о согласовании командировки данных участников.\n\n\n\nsg@m.ru"},{"$f":"CONCATENATE(C71,\" \", D70,\" \",E71,\" \",F71)","v":"Данные по старт-ап команде г. Железнодорожный ТЦ Центральный"},"Данные по старт-ап команде г.",{"$f":"ДанныеОткрытие!B1","v":"Железнодорожный"},"ТЦ",{"$f":"ДанныеОткрытие!B2","v":"Центральный"}]
[null,{"$f":"CONCATENATE(C72,\" \", D71,\" \",E72,\" \",F72)","v":"Во вложении файл с датами командировки в г. Железнодорожный старт-ап команды, ФИО участников и их расчетная часть з/п. \nК командировкам всех сотрудников добавлен 1 дня -до и 1 день -после, на заселение и выселение, время требуемое на дорогу до/с объекта не учтено. "},"Во вложении файл с датами командировки в г.",null,"старт-ап команды, ФИО участников и их расчетная часть з/п. \nК командировкам всех сотрудников добавлен 1 дня -до и 1 день -после, на заселение и выселение, время требуемое на дорогу до/с объекта не учтено."]
[null,"Прошу сообщить о согласовании командировки данных участников."]
[null,{"$f":"E66","v":"sg@m.ru"}]
[]
[]
[]
[]
[]
["Письмо УМ"]
[{"$f":"CONCATENATE(\"УМ \",ДанныеОткрытие!B1,\" \",ДанныеОткрытие!A2,\" \",ДанныеОткрытие!B2)","v":"УМ Железнодорожный ТЦ Центральный"}]
[{"$f":"CONCATENATE(B82,\nCHAR(10),B85,CHAR(10),B86,CHAR(10),B87,CHAR(10),B88,CHAR(10),B89,CHAR(10),B90,CHAR(10),B91,CHAR(10),B92,CHAR(10),B93,CHAR(10),B94,CHAR(10),B95,CHAR(10),B96,CHAR(10),B97,CHAR(10),B98,CHAR(10),B99,CHAR(10),B100,CHAR(10),B101,CHAR(10),B102,CHAR(10),B103,CHAR(10),B104,CHAR(10),B105,CHAR(10),B106,CHAR(10),B107,CHAR(10),B108,\n\nCHAR(10),B83,B84,)","v":"Уважаемые Управляющие, довожу до вашего сведения о предстоящей командировке ваших сотрудников:\n\n\nПетров Петр с 0 по 0       direktor-179 \nИванов Иван с 16.02 по 09.02       direktor-086 \nСидоров Сидр с 0 по 0        direktor-212 \nВасилий Алибабаевич с 0 по 0        direktor-213 \nДоцент с 0 по 0        direktor-214 \nКотов Кот с 0 по 0       direktor-008 \nСмиронов Смирн с 0 по 0       direktor-016 \nВАКАНТ с 0 по 0       0 \nВАКАНТ с 0 по 0       0 \nВика с 0 по 0       direktor-184@ \nСветлогор с 0 по 0       direktor-180@ \nВАКАНТ с 0 по 0       0 \nГрачев Грач с 0 по 0       direktor-136 \nКарпов Карп с 16.01 по 09.02       direktor-137 \nВАКАНТ с 0 по 0       0 \nВАКАНТ с 0 по 0       0 \nВАКАНТ с 0 по 0       0 \nМитя с 0 по 0       direktor-008  \nНастя с 0 по 0       direktor-109  \nКоля с 0 по 0       direktor-092  \nИгорь с 0 по 0       direktor-004  \nВикор с 0 по 0       direktor-221  \nДима с 0 по 0       direktor-160  \nСаша с 0 по 0       direktor-082  \n\nДаты указаны без учета затраченного времени на дорогу к месту командировки и возвращения из нее: только даты приезда на проект и отъезда с него. Точную дату выезда в командировку и дату возвращения из нее Ваш сотрудник предоставит после покупки билетов.\nНеобходимо учесть данный интервал дат при составлении табеля рабочего времени в Вашем магазине: один день до и два дня после обязательные выходные!\n\nПрошу подтвердить получение данного письма."},"Уважаемые Управляющие, довожу до вашего сведения о предстоящей командировке ваших сотрудников:\n\n"]
[null,"\nДаты указаны без учета затраченного времени на дорогу к месту командировки и возвращения из нее: только даты приезда на проект и отъезда с него. Точную дату выезда в командировку и дату возвращения из нее Ваш сотрудник предоставит после покупки билетов.\nНеобходимо учесть данный интервал дат при составлении табеля рабочего времени в Вашем магазине: один день до и два дня после обязательные выходные!\n"]
[null,"\nПрошу подтвердить получение данного письма."]
[null,{"$f":"CONCATENATE(I2,\" \",D2,\" \",E2,\" \",F2,\" \",G2,\" \",\" \",\" \",\" \",\" \",\" \",\" \",X2,\" \",Y2)","v":"Петров Петр с 0 по 0       direktor-179 "}]
[null,{"$f":"CONCATENATE(I3,\" \",D3,\" \",E3,\" \",F3,\" \",G3,\" \",\" \",\" \",\" \",\" \",\" \",\" \",X3,\" \",Y3)","v":"Иванов Иван с 16.02 по 09.02       direktor-086 "}]
[null,"Сидоров Сидр с 0 по 0        direktor-212 "]
[null,"Василий Алибабаевич с 0 по 0        direktor-213 "]
[null,"Доцент с 0 по 0        direktor-214 "]
[null,"Котов Кот с 0 по 0       direktor-008 "]
[null,"Смиронов Смирн с 0 по 0       direktor-016 "]
[null,"ВАКАНТ с 0 по 0       0 "]
[null,"ВАКАНТ с 0 по 0       0 "]
[null,"Вика с 0 по 0       direktor-184@ "]
[null,"Светлогор с 0 по 0       direktor-180@ "]
[null,"ВАКАНТ с 0 по 0       0 "]
[null,"Грачев Грач с 0 по 0       direktor-136 "]
[null,"Карпов Карп с 16.01 по 09.02       direktor-137 "]
[null,"ВАКАНТ с 0 по 0       0 "]
[null,"ВАКАНТ с 0 по 0       0 "]
[null,"ВАКАНТ с 0 по 0       0 "]
[null,"Митя с 0 по 0       direktor-008  "]
[null,"Настя с 0 по 0       direktor-109  "]
[null,"Коля с 0 по 0       direktor-092  "]
[null,"Игорь с 0 по 0       direktor-004  "]
[null,"Викор с 0 по 0       direktor-221  "]
[null,"Дима с 0 по 0       direktor-160  "]
[null,"Саша с 0 по 0       direktor-082  "]
[]
[null,null,"АГЗ",null,null,null,null,null,"РП","Телефон","mail"]
[null,null,"бас","8-900",10,null,null,null,"АД","8-100","d.a@m.ru"]
[null,null,"бер","8-901",3,null,null,null,"БМ","8-101","mb@m.ru"]
[null,null,"грин","8-902",7,null,null,null,"ГС","8-102","sg@m.ru"]
[null,null,"зав","8-903",6,null,null,null,"КП","8-103","pk@m.ru"]
[null,null,"илю","8-904",15,null,null,null,"ЛП","8-104","pl@m.ru"]
[null,null,"кар","8-905",14,null,null,null,"ОД","8-105","do@m.ru"]
[null,null,"карп","8-906",1,null,null,null,"ПЕ","8-106","ep@m.ru"]
[null,null,"крок","8-907",2,null,null,null,"СД","8-107","ds@m.ru"]
[null,null,"мих","8-908",4,null,null,null,"ЯВ","8-108","vy@m.ru"]
[null,null,"пер","8-909",9]
[null,null,"рез","8-910",8]
[null,null,"сбр","8-911",5]
[null,null,"хам","8-912",13]
[]
[]
[null,null,"шад","8-913",11]
[null,null,"шум","8-914",12]
[]
[null,null,"карп","8-906",1]
[null,null,"крок","8-907",2]
[null,null,"бер","8-901",3]
[null,null,"мих","8-908",4]
[null,null,"сбр","8-911",5]
[null,null,"зав","8-903",6]
[null,null,"грин","8-902",7]
[null,null,"рез","8-910",8]
[null,null,"пер","8-909",9]
[null,null,"бас","8-900",10]
[null,null,"шад","8-913",11]
[null,null,"шум","8-914",12]
[null,null,"хам","8-912",13]
[null,null,"кар","8-905",14]
[null,null,"илю","8-904",15]